Workbook

Sheet Início
E2: Painel Coletivo Simplificado
C4: Olá,
C5: Seja bem-vindo(a)!
C7: Esse é um formulário desenvolvido pela Neoenergia Brasília, para simplificar a apresentação de projetos de Painel Coletivo - Interligação Neoenergia Brasília, para rede de baixa tensão. Norma NTD 6.07.
C8: Navegue pelo formulário, seguindo as orientações e preenchendo as informações solicitadas, ao final, ser-lhe-á apresentado um resumo das instalações.
C14: O processo é simples e rápido!
C16: Pronto(a) para iniciar o preenchimento?
C22: *Nota: Compatível com Excel 2013 e versões superiores | H22: Ver. 1.0

Sheet Formulário
F1: Painel Coletivo - Interligação Neoenergia Brasília
B2: Dados Básicos do Serviço
B4: Resumo do Serviço : | F4: PM
B7: Tipo de Serviço: | F7: Ligação Nova - Instalação de Painel Coletivo
B8: Trata-se de único ramal de ligação? | H8: Sim | K8: =IF(H8="Sim","OK",IF(H8="Não","Reprovado! Não pode haver 2 ramais de ligação na mesma propriedade!","")) -> OK
B9: Formulário de Declaração de Carga e Demanda anexada e devidamente preenchido? | H9: Sim | K9: =IF(H9="Sim","OK",IF(H9="Não","Reprovado! Formulário deverá ser enviado!","")) -> OK
B10: Respeitadas os afastamentos minimos das edificações e divisas? Norma NTD 6.07 | H10: Sim | K10: =IF(H10="Sim","OK",IF(H10="Não","Reprovado! Todas as distâncias deverão ser respeitadas","")) -> OK
B11: As informações apresentadas foram validadas por meio de vistoria no local? | H11: Sim | K11: =IF(H11="Sim","OK",IF(H11="Não","Reprovado! Deverá efetuar levantamento no local!","")) -> OK
B12: Existe gerador proposto nas instalações? | H12: Não | K12: =IF(H12="Não","OK",IF(H12="Sim","Anexar diagrama unifilar contendo o ponto de instalação do gerador. Observar itens da NTD 6.07.","")) -> OK
B13: O painel está intalado dentro dos limites da propriedade? | H13: Sim | K13: =IF(H13="Não","Reprovado! O painel de medição deve ficar dentro dos limites do lote!",IF(H13="Sim","OK","")) -> OK
B14: Enviada ART/TRT/Outro (Projeto, Aterramento...): propriedade? | H14: Sim | K14: =IF(H14="Sim","OK",IF(H14="Não","Reprovado!","")) -> OK
B15: O empreendimento possui mais de 6 medições com no máximo 75kW de carga instalada cada uma? | H15: Sim | K15: =IF(H15="Sim","OK",IF(H15="Não","Reprovado! Em caso de carga instalada acima de 75kW o fornecimento deve ser feito em média tensão !","")) -> OK
B16: O empreendimento possui medição de incêndio? | H16: Sim | K16: =IF(H16="Não","OK",IF(H16="Sim","A medição de incêndio deverá ser instalada em caixa P1 separada do painel.","")) -> A medição de incêndio deverá ser instalada em caixa P1 separada do painel.
B17: O empreendimento possui 2 ou mais medições acima de 75kW de carga instalada cada e a demanda geral é superior a 65kVA? | H17: Não | K17: =IF(H17="Não","OK",IF(H17="Sim","Reprovado! Caso o empreendimento tenha a maioria das unidades com carga até 75kW, é permitido apenas uma unidade com demanda acima de 65kVA !","")) -> OK
B18: Dados da Unidade Consumidora
B19: Responsável Pela U.C. | F19: RODRIGO CASTRO | N19: UC:
B20: E-mail | F20: rodrigo.castro@neoenergia.com
B21: RG: | F21: 3789456 | I21: CPF/CNPJ: | L21: 010.524.654.77
B22: Telefone fixo | F22: 6136281626 | I22: Celular: | L22: 61991877275
B23: Endereço | F23: QR 417 CONJUNTO F | O23: Nº. | P23: 62
B24: Localidade | F24: SANTA MARIA | L24: Unidade Federativa | O24: DF
B25: Dados do Responsável Técnico
B26: Responsável Técnico: | F26: PAULO VINICIUS VIEIRA BORGES
B27: E-mail | F27: paulo.vinicius@neoenergia.com
B28: Telefone fixo | I28: Celular: | L28: 61991877275
B29: Conselho de Classe: | F29: CREA | I29: Nº CREA/CFT: | L29: 02005014766
B30: Formação | F30: ENGENHIERO ELETRICISTA | I30: Nº da ART/TRT: | L30: 47862045699
B31: Observações/Comentários adicionais
B32: Todas as normas da NEOENERGIA Brasília estão sendo observadas, sobretudo a norma NTD 6.07. Condições técnicas e de segurança estão ok.
B36: Declaração e Assinatura
B37: Declaro verdadeiras todas as inforamções prestadas nesse memorial. | I37: Assinatura do Responsável técnico
B40: _________________/_____/_____/_____

Sheet QDINC
C2: Painel Coletivo - Interligação Neoenergia Brasília
B3: QD CARGAS MEDIÇÃO DE INCÊNDIO
B5: Descrição dos Equipamentos | C5: Carga (W) | D5: Fator Potência | E5: Carda demandada (kVA)
B6: Motor trifásico | C6: 20000 | D6: 1 | E6: =IFERROR(C6/D6/1000,"") -> 20
E7: =IFERROR(C7/D7/1000,"") -> 
B23: TOTAL | C23: =SUM(C6:C22) -> 20000 | E23: =SUM(E6:E22) -> 20
B24: FATOR DE DEMANDA | E24: 0.5
B25: DEMANDA DA UNIDADE | E25: =E24*E23 -> 10
B26: POSSUI CARGA TRIFÁSICA | E26: =IF((COUNTIF(B6:B22,"Motor trifásico")+COUNTIF(B6:B22,"Tomada trifásica"))>0,"SIM","NÃO") -> SIM
B27: TIPO DE MEDIÇÃO | E27: =IF(AND(C23<=8000,E26="NÃO"),"M1",IF(AND(C23<11000,E26="NÃO"),"M2",IF(AND(C23<=15000,E26="NÃO"),"B1",IF(AND(C23<=22000,E26="NÃO"),"B2",IF(E25<=23,"T1",IF(E25<=33,"T2",IF(E25<=45,"T3",IF(E25<=65,"T4","DEMANDA NÃO PERMITIDA")))))))) -> T1
B28: CORRENTE(A) | E28: =E25/0.38/SQRT(3) -> 15.19342814
B29: DISJUNTOR | E29: 32
B30: CONDUTORES | E30: =IF(E27="M1",Tabelas!D3,IF(E27="M2",Tabelas!D4,IF(E27="B1",Tabelas!D5,IF(E27="B2",Tabelas!D6,IF(E27="T1",Tabelas!D7,IF(E27="T2",Tabelas!D8,IF(E27="T3",Tabelas!D9,IF(E27="T4",Tabelas!D10,"")))))))) -> 3#6(6)T#6
B31: *Observação: caso o projetista altere a bitola de algum cabo de medição por motivo de queda de tensão, deverá anexar memória de cálculo para cada uma das medições. Indicando o novo cabo adotado.

Sheet QD01
C2: Painel Coletivo - Interligação Neoenergia Brasília
B3: QD CARGAS TIPO 01
B4: Descrição dos equipamentos | C4: Carga (W) | D4: Fator Potência | E4: Carda demandada (kVA) | L4: OBSERVAÇÕES
B5: Iluminação | C5: 150 | D5: 1 | E5: =IFERROR(C5/D5/1000,"") -> 0.15
B6: Tomadas | C6: 1000 | D6: 1 | E6: =IFERROR(C6/D6/1000,"") -> 1
B7: Motor | C7: 100 | D7: 1 | E7: 0.1 | L7: PODERÃO SER CADASTRADOS 5 QUADROS DE CARGAS DISTINTOS
L8: NO QD01 PODERÃO SER CADASTRADAS- 20 UNIDADES; NO QD02- 20 UNIDADES
L9: NO QD03 - 10 UNIDADES; NO QD04 - 10 UNIDADES ;E NO QD05 - 10 UNIDADES
B22: TOTAL | C22: =SUM(C5:C21) -> 1250 | E22: =SUM(E5:E21) -> 1.25
B23: FATOR DE DEMANDA | E23: 0.5
B24: DEMANDA DA UNIDADE | E24: =E23*E22 -> 0.625
B25: POSSUI CARGA TRIFÁSICA | E25: =IF((COUNTIF(B5:B21,"Motor trifásico")+COUNTIF(B5:B21,"Tomada trifásica"))>0,"SIM","NÃO") -> NÃO
B26: TIPO DE MEDIÇÃO | E26: =IF(AND(C22<=8000,E25="NÃO"),"M1",IF(AND(C22<=11000,E25="NÃO"),"M2",IF(AND(C22<=15000,E25="NÃO"),"B1",IF(AND(C22<=22000,E25="NÃO"),"B2",IF(E24<=23,"T1",IF(E24<=33,"T2",IF(E24<=45,"T3",IF(E24<=65,"T4","DEMANDA NÃO PERMITIDA")))))))) -> M1
B27: CORRENTE | E27: =IF(OR(E26="M1",E26="M2"),E24/0.22,IF(OR(E26="b1",E26="b2"),E24/0.22/2,IF(OR(E26="t1",E26="t2",E26="T3",E26="t4"),E24/0.38/SQRT(3)))) -> 2.840909091
B28: DISJUNTOR | E28: 32
B29: CONDUTORES | E29: =IF(E26="M1",Tabelas!D3,IF(E26="M2",Tabelas!D4,IF(E26="B1",Tabelas!D5,IF(E26="B2",Tabelas!D6,IF(E26="T1",Tabelas!D7,IF(E26="T2",Tabelas!D8,IF(E26="T3",Tabelas!D9,IF(E26="T4",Tabelas!D10,"")))))))) -> 1#6(6)T#6
B30: *Observação: caso o projetista altere a bitola de algum cabo de medição por motivo de queda de tensão, deverá anexar memória de cálculo para cada uma das medições. Indicando o novo cabo adotado.
B31: UNIDADES CONSUMIDORAS TIPO 01
B32: Tipo | C32: Nº | D32: Pavimento
B33: Serviço | C33: 1 | D33: Térreo

Sheet QD02
C2: Painel Coletivo - Interligação Neoenergia Brasília
B3: QD CARGAS TIPO 02
B4: Descrição dos equipamentos | C4: Carga (W) | D4: Fator Potência | E4: Carda demandada (kVA) | L4: OBSERVAÇÕES
B5: Iluminação | C5: 600 | D5: 1 | E5: =IFERROR(C5/D5/1000,"") -> 0.6
B6: Tomadas | C6: 1100 | D6: 1 | E6: =IFERROR(C6/D6/1000,"") -> 1.1
B7: Tomadas | C7: 1000 | D7: 1 | E7: 1 | L7: PODERÃO SER CADASTRADOS 5 QUADROS DE CARGAS DISTINTOS
B8: Ar-condiconado | C8: 1000 | D8: 1 | E8: 1 | L8: NO QD01 PODERÃO SER CADASTRASDAS- 20 UNIDADES; NO QD02- 20 UNIDADES
B9: Ar-condiconado | C9: 1000 | D9: 1 | E9: 1 | L9: NO QD03 - 10 UNIDADES; NO QD04 - 10 UNIDADES ;E NO QD05 - 10 UNIDADES
B10: Tomada Trifásica | C10: 370 | D10: 1 | E10: 0.37
B22: TOTAL | C22: =SUM(C5:C21) -> 5070 | E22: =SUM(E5:E21) -> 5.07
B23: FATOR DE DEMANDA | E23: 0.91
B24: DEMANDA DA UNIDADE | E24: =E23*E22 -> 4.6137
B25: POSSUI CARGA TRIFÁSICA | E25: =IF((COUNTIF(B5:B21,"Motor trifásico")+COUNTIF(B5:B21,"Tomada trifásica"))>0,"SIM","NÃO") -> SIM
B26: TIPO DE MEDIÇÃO | E26: =IF(AND(C22<=8000,E25="NÃO"),"M1",IF(AND(C22<11000,E25="NÃO"),"M2",IF(AND(C22<=15000,E25="NÃO"),"B1",IF(AND(C22<=22000,E25="NÃO"),"B2",IF(E24<=23,"T1",IF(E24<=33,"T2",IF(E24<=45,"T3",IF(E24<=65,"T4","DEMANDA NÃO PERMITIDA")))))))) -> T1
B27: CORRENTE | E27: =IF(OR(E26="M1",E26="M2"),E24/0.22,IF(OR(E26="b1",E26="b2"),E24/0.22/2,IF(OR(E26="t1",E26="t2",E26="T3",E26="t4"),E24/0.38/SQRT(3)))) -> 7.009791939
B28: DISJUNTOR | E28: 32
B29: CONDUTORES | E29: =IF(E26="M1",Tabelas!D3,IF(E26="M2",Tabelas!D4,IF(E26="B1",Tabelas!D5,IF(E26="B2",Tabelas!D6,IF(E26="T1",Tabelas!D7,IF(E26="T2",Tabelas!D8,IF(E26="T3",Tabelas!D9,IF(E26="T4",Tabelas!D10,"")))))))) -> 3#6(6)T#6
B30: *Observação: caso o projetista altere a bitola de algum cabo de medição por motivo de queda de tensão, deverá anexar memória de cálculo para cada uma das medições. Indicando o novo cabo adotado.
B31: Unidades Consumidoras Tipo 02
B32: Tipo | C32: Nº | D32: Pavimento
B33: Loja | C33: 1 | D33: 1º Pavimento
B34: Loja | C34: 2 | D34: 2º Pavimento

Sheet QD03
C2: Painel Coletivo - Interligação Neoenergia Brasília
B3: QD CARGAS TIPO 03
B4: Descrição dos equipamentos | C4: Carga (W) | D4: Fator Potência | E4: Carda demandada (kVA) | L4: OBSERVAÇÕES
B5: Iluminação | C5: 50 | D5: 1 | E5: =IFERROR(C5/D5/1000,"") -> 0.05
B6: Tomadas | C6: 600 | D6: 1 | E6: =IFERROR(C6/D6/1000,"") -> 0.6
B7: Tomadas | C7: 1000 | D7: 1 | E7: 1 | L7: PODERÃO SER CADASTRADOS 5 QUADROS DE CARGAS DISTINTOS
B8: Aparelhos de aquecimento | C8: 6800 | D8: 1 | E8: 6.8 | L8: NO QD01 PODERÃO SER CADASTRASDAS- 20 UNIDADES; NO QD02- 20 UNIDADES
L9: NO QD03 - 10 UNIDADES; NO QD04 - 10 UNIDADES ;E NO QD05 - 10 UNIDADES
B22: TOTAL | C22: =SUM(C5:C21) -> 8450 | E22: =SUM(E5:E21) -> 8.45
B23: FATOR DE DEMANDA | E23: 0.35
B24: DEMANDA DA UNIDADE | E24: =E23*E22 -> 2.9575
B25: POSSUI CARGA TRIFÁSICA | E25: =IF((COUNTIF(B5:B21,"Motor trifásico")+COUNTIF(B5:B21,"Tomada trifásica"))>0,"SIM","NÃO") -> NÃO
B26: TIPO DE MEDIÇÃO | E26: =IF(AND(C22<=8000,E25="NÃO"),"M1",IF(AND(C22<11000,E25="NÃO"),"M2",IF(AND(C22<=15000,E25="NÃO"),"B1",IF(AND(C22<=22000,E25="NÃO"),"B2",IF(E24<=23,"T1",IF(E24<=33,"T2",IF(E24<=45,"T3",IF(E24<=65,"T4","DEMANDA NÃO PERMITIDA")))))))) -> M2
B27: CORRENTE | E27: =IF(OR(E26="M1",E26="M2"),E24/0.22,IF(OR(E26="b1",E26="b2"),E24/0.22/2,IF(OR(E26="t1",E26="t2",E26="T3",E26="t4"),E24/0.38/SQRT(3)))) -> 13.44318182
B28: DISJUNTOR | E28: 50
B29: CONDUTORES | E29: =IF(E26="M1",Tabelas!D3,IF(E26="M2",Tabelas!D4,IF(E26="B1",Tabelas!D5,IF(E26="B2",Tabelas!D6,IF(E26="T1",Tabelas!D7,IF(E26="T2",Tabelas!D8,IF(E26="T3",Tabelas!D9,IF(E26="T4",Tabelas!D10,"")))))))) -> 1#10(10)T#10
B30: *Observação: caso o projetista altere a bitola de algum cabo de medição por motivo de queda de tensão, deverá anexar memória de cálculo para cada uma das medições. Indicando o novo cabo adotado.
B31: Unidades Consumidoras Tipo 03
B32: Tipo | C32: Nº | D32: Pavimento
B33: Apartamento | C33: 101 | D33: 1º Pavimento
B34: Apartamento | C34: 102 | D34: 1º Pavimento
B35: Apartamento | C35: 103 | D35: 1º Pavimento
B36: Apartamento | C36: 104 | D36: 1º Pavimento
B37: Apartamento | C37: 201 | D37: 2º Pavimento
B38: Apartamento | C38: 202 | D38: 2º Pavimento
B39: Apartamento | C39: 203 | D39: 2º Pavimento
B40: Apartamento | C40: 204 | D40: 2º Pavimento
B41: Apartamento | C41: 301 | D41: 3º Pavimento
B42: Apartamento | C42: 302 | D42: 3º Pavimento

Sheet QD04
C2: Painel Coletivo - Interligação Neoenergia Brasília
B3: QD CARGAS TIPO 04
B4: Descrição dos equipamentos | C4: Carga (W) | D4: Fator Potência | E4: Carda demandada (kVA) | L4: OBSERVAÇÕES
E5: =IFERROR(C5/D5/1000,"") -> 
E6: =IFERROR(C6/D6/1000,"") -> 
L7: PODERÃO SER CADASTRADOS 5 QUADROS DE CARGAS DISTINTOS
L8: NO QD01 PODERÃO SER CADASTRASDAS- 20 UNIDADES; NO QD02- 20 UNIDADES
L9: NO QD03 - 10 UNIDADES; NO QD04 - 10 UNIDADES ;E NO QD05 - 10 UNIDADES
B22: TOTAL | C22: =SUM(C5:C21) -> 0 | E22: =SUM(E5:E21) -> 0
B23: FATOR DE DEMANDA
B24: DEMANDA DA UNIDADE | E24: =E23*E22 -> 0
B25: POSSUI CARGA TRIFÁSICA | E25: =IF((COUNTIF(B5:B21,"Motor trifásico")+COUNTIF(B5:B21,"Tomada trifásica"))>0,"SIM","NÃO") -> NÃO
B26: TIPO DE MEDIÇÃO | E26: =IF(AND(C22<=8000,E25="NÃO"),"M1",IF(AND(C22<11000,E25="NÃO"),"M2",IF(AND(C22<=15000,E25="NÃO"),"B1",IF(AND(C22<=22000,E25="NÃO"),"B2",IF(E24<=23,"T1",IF(E24<=33,"T2",IF(E24<=45,"T3",IF(E24<=65,"T4","DEMANDA NÃO PERMITIDA")))))))) -> M1
B27: CORRENTE | E27: =IF(OR(E26="M1",E26="M2"),E24/0.22,IF(OR(E26="b1",E26="b2"),E24/0.22/2,IF(OR(E26="t1",E26="t2",E26="T3",E26="t4"),E24/0.38/SQRT(3)))) -> 0
B28: DISJUNTOR
B29: CONDUTORES | E29: =IF(E26="M1",Tabelas!D3,IF(E26="M2",Tabelas!D4,IF(E26="B1",Tabelas!D5,IF(E26="B2",Tabelas!D6,IF(E26="T1",Tabelas!D7,IF(E26="T2",Tabelas!D8,IF(E26="T3",Tabelas!D9,IF(E26="T4",Tabelas!D10,"")))))))) -> 1#6(6)T#6
B30: *Observação: caso o projetista altere a bitola de algum cabo de medição por motivo de queda de tensão, deverá anexar memória de cálculo para cada uma das medições. Indicando o novo cabo adotado.
B31: Unidades Consumidoras Tipo 04
B32: Tipo | C32: Nº | D32: Pavimento

Sheet QD05
C2: Painel Coletivo - Interligação Neoenergia Brasília
B3: QD CARGAS TIPO 05
B4: Descrição dos equipamentos | C4: Carga (W) | D4: Fator Potência | E4: Carda demandada (kVA) | L4: OBSERVAÇÕES
E5: =IFERROR(C5/D5/1000,"") -> 
E6: =IFERROR(C6/D6/1000,"") -> 
L7: PODERÃO SER CADASTRADOS 5 QUADROS DE CARGAS DISTINTOS.
L8: NO QD01 PODERÃO SER CADASTRASDAS- 20 UNIDADES; NO QD02- 20 UNIDADES
L9: NO QD03 - 10 UNIDADES; NO QD04 - 10 UNIDADES ;E NO QD05 - 10 UNIDADES
B22: TOTAL | C22: =SUM(C5:C21) -> 0 | E22: =SUM(E5:E21) -> 0
B23: FATOR DE DEMANDA
B24: DEMANDA DA UNIDADE | E24: =E23*E22 -> 0
B25: POSSUI CARGA TRIFÁSICA | E25: =IF((COUNTIF(B5:B21,"Motor trifásico")+COUNTIF(B5:B21,"Tomada trifásica"))>0,"SIM","NÃO") -> NÃO
B26: TIPO DE MEDIÇÃO | E26: =IF(AND(C22<=8000,E25="NÃO"),"M1",IF(AND(C22<11000,E25="NÃO"),"M2",IF(AND(C22<=15000,E25="NÃO"),"B1",IF(AND(C22<=22000,E25="NÃO"),"B2",IF(E24<=23,"T1",IF(E24<=33,"T2",IF(E24<=45,"T3",IF(E24<=65,"T4","DEMANDA NÃO PERMITIDA")))))))) -> M1
B27: CORRENTE | E27: =IF(OR(E26="M1",E26="M2"),E24/0.22,IF(OR(E26="b1",E26="b2"),E24/0.22/2,IF(OR(E26="t1",E26="t2",E26="T3",E26="t4"),E24/0.38/SQRT(3)))) -> 0
B28: DISJUNTOR
B29: CONDUTORES | E29: =IF(E26="M1",Tabelas!D3,IF(E26="M2",Tabelas!D4,IF(E26="B1",Tabelas!D5,IF(E26="B2",Tabelas!D6,IF(E26="T1",Tabelas!D7,IF(E26="T2",Tabelas!D8,IF(E26="T3",Tabelas!D9,IF(E26="T4",Tabelas!D10,"")))))))) -> 1#6(6)T#6
B30: *Observação: caso o projetista altere a bitola de algum cabo de medição por motivo de queda de tensão, deverá anexar memória de cálculo para cada uma das medições. Indicando o novo cabo adotado.
B31: Unidades Consumidoras Tipo 05
B32: Tipo | C32: Nº | D32: Pavimento

Sheet DadosMedições (hidden)
D1: Esta tela não deve ser exibida ao projetista
B3: QD | D3: Identificação da unidade | E3: Pavimento | F3: Carga inst. (kW) | H3: Demanda (KVA) | I3: Ponto trifásico | J3: TIPO | K3: FASES | M3: Disjuntor | N3: Condutores | O3: Caixa
B4: QDINC | D4: Incêndio | F4: =QDINC!C23 -> 20000 | H4: =QDINC!E25 -> 10 | I4: =QDINC!E26 -> SIM | J4: =QDINC!E27 -> T1 | K4: =VLOOKUP(J4,Tabelas!$A$2:$G$10,2,FALSE) -> TRIF | M4: =_xlfn.CONCAT("DISJ ",K4," ",QDINC!$E$29,"A") -> DISJ TRIF 32A | N4: =VLOOKUP(J4,CABOS,4,FALSE) -> 3#6(6)T#6 | O4: P1
A5: Número | B5: QD | D5: Identificação da unidade | E5: Pavimento | F5: Carga inst. (kW) | G5: Carga Inst kVA | H5: Demanda (KVA) | I5: Ponto trifásico | J5: TIPO | K5: FASES | M5: Disjuntor | N5: Condutores | O5: Painel de madeira
A6: =IF(D6=" "," ",COUNT($A$5:A5)+1) -> 1 | B6: QD01 | C6: 1 | D6: =IF(_xlfn.CONCAT('QD01'!B33,"",'QD01'!C33)="","",_xlfn.CONCAT('QD01'!B33,"",'QD01'!C33)) -> Serviço1 | E6: ='QD01'!D33 -> Térreo | F6: ='QD01'!C22 -> 1250 | G6: ='QD01'!E22 -> 1.25 | H6: ='QD01'!E24 -> 0.625 | I6: ='QD01'!$E$25 -> NÃO | J6: ='QD01'!$E$26 -> M1 | K6: =VLOOKUP(J6,Tabelas!$A$2:$G$10,2,FALSE) -> MONOF | L6: =IF(K6="MONOF ",1,IF(K6="BIF ",2,IF(K6="TRIF ",3,""))) -> 1 | M6: =_xlfn.CONCAT("DISJ ",K6," ",'QD01'!$E$28,"A") -> DISJ MONOF 32A | N6: =VLOOKUP(J6,CABOS,4,FALSE) -> 1#6(6)T#6
A7: =IF(D7=" "," ",COUNT($A$5:A6)+1) -> 2 | B7: QD01 | C7: 2 | D7: =IF(_xlfn.CONCAT('QD01'!B34,"",'QD01'!C34)="","",_xlfn.CONCAT('QD01'!B34,"",'QD01'!C34)) ->  | E7: ='QD01'!D34 -> 0 | F7: ='QD01'!C22 -> 1250 | G7: ='QD01'!E22 -> 1.25 | H7: ='QD01'!E24 -> 0.625 | I7: ='QD01'!$E$25 -> NÃO | J7: ='QD01'!$E$26 -> M1 | K7: =VLOOKUP(J7,Tabelas!$A$2:$G$10,2,FALSE) -> MONOF | L7: =IF(K7="MONOF ",1,IF(K7="BIF ",2,IF(K7="TRIF ",3,""))) -> 1 | M7: =_xlfn.CONCAT("DISJ ",K7," ",'QD01'!$E$28,"A") -> DISJ MONOF 32A | N7: =VLOOKUP(J7,CABOS,4,FALSE) -> 1#6(6)T#6
A8: =IF(D8=" "," ",COUNT($A$5:A7)+1) -> 3 | B8: QD01 | C8: 3 | D8: =IF(_xlfn.CONCAT('QD01'!B35,"",'QD01'!C35)="","",_xlfn.CONCAT('QD01'!B35,"",'QD01'!C35)) ->  | E8: ='QD01'!D35 -> 0 | F8: ='QD01'!C22 -> 1250 | G8: ='QD01'!E22 -> 1.25 | H8: ='QD01'!E24 -> 0.625 | I8: ='QD01'!$E$25 -> NÃO | J8: ='QD01'!$E$26 -> M1 | K8: =VLOOKUP(J8,Tabelas!$A$2:$G$10,2,FALSE) -> MONOF | L8: 1 | M8: =_xlfn.CONCAT("DISJ ",K8," ",'QD01'!$E$28,"A") -> DISJ MONOF 32A | N8: 1#6(6)T#6
A9: =IF(D9=" "," ",COUNT($A$5:A8)+1) -> 4 | B9: QD01 | C9: 4 | D9: =IF(_xlfn.CONCAT('QD01'!B36,"",'QD01'!C36)="","",_xlfn.CONCAT('QD01'!B36,"",'QD01'!C36)) ->  | E9: ='QD01'!D36 -> 0 | F9: ='QD01'!C22 -> 1250 | G9: ='QD01'!E22 -> 1.25 | H9: ='QD01'!E24 -> 0.625 | I9: ='QD01'!$E$25 -> NÃO | J9: ='QD01'!$E$26 -> M1 | K9: =VLOOKUP(J9,Tabelas!$A$2:$G$10,2,FALSE) -> MONOF | L9: 1 | M9: =_xlfn.CONCAT("DISJ ",K9," ",'QD01'!$E$28,"A") -> DISJ MONOF 32A | N9: 1#6(6)T#6
A10: =IF(D10=" "," ",COUNT($A$5:A9)+1) -> 5 | B10: QD01 | C10: 5 | D10: =IF(_xlfn.CONCAT('QD01'!B37,"",'QD01'!C37)="","",_xlfn.CONCAT('QD01'!B37,"",'QD01'!C37)) ->  | E10: ='QD01'!D37 -> 0 | F10: ='QD01'!C22 -> 1250 | G10: ='QD01'!E22 -> 1.25 | H10: ='QD01'!E24 -> 0.625 | I10: ='QD01'!$E$25 -> NÃO | J10: ='QD01'!$E$26 -> M1 | K10: =VLOOKUP(J10,Tabelas!$A$2:$G$10,2,FALSE) -> MONOF | L10: 1 | M10: =_xlfn.CONCAT("DISJ ",K10," ",'QD01'!$E$28,"A") -> DISJ MONOF 32A | N10: 1#6(6)T#6
A11: =IF(D11=" "," ",COUNT($A$5:A10)+1) -> 6 | B11: QD01 | C11: 6 | D11: =IF(_xlfn.CONCAT('QD01'!B38,"",'QD01'!C38)="","",_xlfn.CONCAT('QD01'!B38,"",'QD01'!C38)) ->  | E11: ='QD01'!D38 -> 0 | F11: ='QD01'!C22 -> 1250 | G11: ='QD01'!E22 -> 1.25 | H11: ='QD01'!E24 -> 0.625 | I11: ='QD01'!$E$25 -> NÃO | J11: ='QD01'!$E$26 -> M1 | K11: =VLOOKUP(J11,Tabelas!$A$2:$G$10,2,FALSE) -> MONOF | L11: 1 | M11: =_xlfn.CONCAT("DISJ ",K11," ",'QD01'!$E$28,"A") -> DISJ MONOF 32A | N11: 1#6(6)T#6
A12: =IF(D12=" "," ",COUNT($A$5:A11)+1) -> 7 | B12: QD01 | C12: 7 | D12: =IF(_xlfn.CONCAT('QD01'!B39,"",'QD01'!C39)="","",_xlfn.CONCAT('QD01'!B39,"",'QD01'!C39)) ->  | E12: ='QD01'!D39 -> 0 | F12: ='QD01'!C22 -> 1250 | G12: ='QD01'!E22 -> 1.25 | H12: ='QD01'!E24 -> 0.625 | I12: ='QD01'!$E$25 -> NÃO | J12: ='QD01'!$E$26 -> M1 | K12: =VLOOKUP(J12,Tabelas!$A$2:$G$10,2,FALSE) -> MONOF | L12: 1 | M12: =_xlfn.CONCAT("DISJ ",K12," ",'QD01'!$E$28,"A") -> DISJ MONOF 32A | N12: 1#6(6)T#6
A13: =IF(D13=" "," ",COUNT($A$5:A12)+1) -> 8 | B13: QD01 | C13: 8 | D13: =IF(_xlfn.CONCAT('QD01'!B40,"",'QD01'!C40)="","",_xlfn.CONCAT('QD01'!B40,"",'QD01'!C40)) ->  | E13: ='QD01'!D40 -> 0 | F13: ='QD01'!C22 -> 1250 | G13: ='QD01'!E22 -> 1.25 | H13: ='QD01'!E24 -> 0.625 | I13: ='QD01'!$E$25 -> NÃO | J13: ='QD01'!$E$26 -> M1 | K13: =VLOOKUP(J13,Tabelas!$A$2:$G$10,2,FALSE) -> MONOF | L13: 1 | M13: =_xlfn.CONCAT("DISJ ",K13," ",'QD01'!$E$28,"A") -> DISJ MONOF 32A | N13: 1#6(6)T#6
A14: =IF(D14=" "," ",COUNT($A$5:A13)+1) -> 9 | B14: QD01 | C14: 9 | D14: =IF(_xlfn.CONCAT('QD01'!B41,"",'QD01'!C41)="","",_xlfn.CONCAT('QD01'!B41,"",'QD01'!C41)) ->  | E14: ='QD01'!D41 -> 0 | F14: ='QD01'!C22 -> 1250 | G14: ='QD01'!E22 -> 1.25 | H14: ='QD01'!E24 -> 0.625 | I14: ='QD01'!$E$25 -> NÃO | J14: ='QD01'!$E$26 -> M1 | K14: =VLOOKUP(J14,Tabelas!$A$2:$G$10,2,FALSE) -> MONOF | L14: 1 | M14: =_xlfn.CONCAT("DISJ ",K14," ",'QD01'!$E$28,"A") -> DISJ MONOF 32A | N14: 1#6(6)T#6
A15: =IF(D15=" "," ",COUNT($A$5:A14)+1) -> 10 | B15: QD01 | C15: 10 | D15: =IF(_xlfn.CONCAT('QD01'!B42,"",'QD01'!C42)="","",_xlfn.CONCAT('QD01'!B42,"",'QD01'!C42)) ->  | E15: ='QD01'!D42 -> 0 | F15: ='QD01'!C22 -> 1250 | G15: ='QD01'!E22 -> 1.25 | H15: ='QD01'!E24 -> 0.625 | I15: ='QD01'!$E$25 -> NÃO | J15: ='QD01'!$E$26 -> M1 | K15: =VLOOKUP(J15,Tabelas!$A$2:$G$10,2,FALSE) -> MONOF | L15: 1 | M15: =_xlfn.CONCAT("DISJ ",K15," ",'QD01'!$E$28,"A") -> DISJ MONOF 32A | N15: 1#6(6)T#6
A16: =IF(D16=" "," ",COUNT($A$5:A15)+1) -> 11 | B16: QD01 | C16: 11 | D16: =IF(_xlfn.CONCAT('QD01'!B43,"",'QD01'!C43)="","",_xlfn.CONCAT('QD01'!B43,"",'QD01'!C43)) ->  | E16: ='QD01'!D43 -> 0 | F16: ='QD01'!C22 -> 1250 | G16: ='QD01'!E22 -> 1.25 | H16: ='QD01'!E24 -> 0.625 | I16: ='QD01'!$E$25 -> NÃO | J16: ='QD01'!$E$26 -> M1 | K16: =VLOOKUP(J16,Tabelas!$A$2:$G$10,2,FALSE) -> MONOF | L16: 1 | M16: =_xlfn.CONCAT("DISJ ",K16," ",'QD01'!$E$28,"A") -> DISJ MONOF 32A | N16: 1#6(6)T#6
A17: =IF(D17=" "," ",COUNT($A$5:A16)+1) -> 12 | B17: QD01 | C17: 12 | D17: =IF(_xlfn.CONCAT('QD01'!B44,"",'QD01'!C44)="","",_xlfn.CONCAT('QD01'!B44,"",'QD01'!C44)) ->  | E17: ='QD01'!D44 -> 0 | F17: ='QD01'!C22 -> 1250 | G17: ='QD01'!E22 -> 1.25 | H17: ='QD01'!E24 -> 0.625 | I17: ='QD01'!$E$25 -> NÃO | J17: ='QD01'!$E$26 -> M1 | K17: =VLOOKUP(J17,Tabelas!$A$2:$G$10,2,FALSE) -> MONOF | L17: 1 | M17: =_xlfn.CONCAT("DISJ ",K17," ",'QD01'!$E$28,"A") -> DISJ MONOF 32A | N17: 1#6(6)T#6
A18: =IF(D18=" "," ",COUNT($A$5:A17)+1) -> 13 | B18: QD01 | C18: 13 | D18: =IF(_xlfn.CONCAT('QD01'!B45,"",'QD01'!C45)="","",_xlfn.CONCAT('QD01'!B45,"",'QD01'!C45)) ->  | E18: ='QD01'!D45 -> 0 | F18: ='QD01'!C22 -> 1250 | G18: ='QD01'!E22 -> 1.25 | H18: ='QD01'!E24 -> 0.625 | I18: ='QD01'!$E$25 -> NÃO | J18: ='QD01'!$E$26 -> M1 | K18: =VLOOKUP(J18,Tabelas!$A$2:$G$10,2,FALSE) -> MONOF | L18: 1 | M18: =_xlfn.CONCAT("DISJ ",K18," ",'QD01'!$E$28,"A") -> DISJ MONOF 32A | N18: 1#6(6)T#6
A19: =IF(D19=" "," ",COUNT($A$5:A18)+1) -> 14 | B19: QD01 | C19: 14 | D19: =IF(_xlfn.CONCAT('QD01'!B46,"",'QD01'!C46)="","",_xlfn.CONCAT('QD01'!B46,"",'QD01'!C46)) ->  | E19: ='QD01'!D46 -> 0 | F19: ='QD01'!C22 -> 1250 | G19: ='QD01'!E22 -> 1.25 | H19: ='QD01'!E24 -> 0.625 | I19: ='QD01'!$E$25 -> NÃO | J19: ='QD01'!$E$26 -> M1 | K19: =VLOOKUP(J19,Tabelas!$A$2:$G$10,2,FALSE) -> MONOF | L19: 1 | M19: =_xlfn.CONCAT("DISJ ",K19," ",'QD01'!$E$28,"A") -> DISJ MONOF 32A | N19: 1#6(6)T#6
A20: =IF(D20=" "," ",COUNT($A$5:A19)+1) -> 15 | B20: QD01 | C20: 15 | D20: =IF(_xlfn.CONCAT('QD01'!B47,"",'QD01'!C47)="","",_xlfn.CONCAT('QD01'!B47,"",'QD01'!C47)) ->  | E20: ='QD01'!D47 -> 0 | F20: ='QD01'!C22 -> 1250 | G20: ='QD01'!E22 -> 1.25 | H20: ='QD01'!E24 -> 0.625 | I20: ='QD01'!$E$25 -> NÃO | J20: ='QD01'!$E$26 -> M1 | K20: =VLOOKUP(J20,Tabelas!$A$2:$G$10,2,FALSE) -> MONOF | L20: 1 | M20: =_xlfn.CONCAT("DISJ ",K20," ",'QD01'!$E$28,"A") -> DISJ MONOF 32A | N20: 1#6(6)T#6
A21: =IF(D21=" "," ",COUNT($A$5:A20)+1) -> 16 | B21: QD01 | C21: 16 | D21: =IF(_xlfn.CONCAT('QD01'!B48,"",'QD01'!C48)="","",_xlfn.CONCAT('QD01'!B48,"",'QD01'!C48)) ->  | E21: ='QD01'!D48 -> 0 | F21: ='QD01'!C22 -> 1250 | G21: ='QD01'!E22 -> 1.25 | H21: ='QD01'!E24 -> 0.625 | I21: ='QD01'!$E$25 -> NÃO | J21: ='QD01'!$E$26 -> M1 | K21: =VLOOKUP(J21,Tabelas!$A$2:$G$10,2,FALSE) -> MONOF | L21: 1 | M21: =_xlfn.CONCAT("DISJ ",K21," ",'QD01'!$E$28,"A") -> DISJ MONOF 32A | N21: 1#6(6)T#6
A22: =IF(D22=" "," ",COUNT($A$5:A21)+1) -> 17 | B22: QD01 | C22: 17 | D22: =IF(_xlfn.CONCAT('QD01'!B49,"",'QD01'!C49)="","",_xlfn.CONCAT('QD01'!B49,"",'QD01'!C49)) ->  | E22: ='QD01'!D49 -> 0 | F22: ='QD01'!C22 -> 1250 | G22: ='QD01'!E22 -> 1.25 | H22: ='QD01'!E24 -> 0.625 | I22: ='QD01'!$E$25 -> NÃO | J22: ='QD01'!$E$26 -> M1 | K22: =VLOOKUP(J22,Tabelas!$A$2:$G$10,2,FALSE) -> MONOF | L22: 1 | M22: =_xlfn.CONCAT("DISJ ",K22," ",'QD01'!$E$28,"A") -> DISJ MONOF 32A | N22: 1#6(6)T#6
A23: =IF(D23=" "," ",COUNT($A$5:A22)+1) -> 18 | B23: QD01 | C23: 18 | D23: =IF(_xlfn.CONCAT('QD01'!B50,"",'QD01'!C50)="","",_xlfn.CONCAT('QD01'!B50,"",'QD01'!C50)) ->  | E23: ='QD01'!D50 -> 0 | F23: ='QD01'!C22 -> 1250 | G23: ='QD01'!E22 -> 1.25 | H23: ='QD01'!E24 -> 0.625 | I23: ='QD01'!$E$25 -> NÃO | J23: ='QD01'!$E$26 -> M1 | K23: =VLOOKUP(J23,Tabelas!$A$2:$G$10,2,FALSE) -> MONOF | L23: 1 | M23: =_xlfn.CONCAT("DISJ ",K23," ",'QD01'!$E$28,"A") -> DISJ MONOF 32A | N23: 1#6(6)T#6
A24: =IF(D24=" "," ",COUNT($A$5:A23)+1) -> 19 | B24: QD01 | C24: 19 | D24: =IF(_xlfn.CONCAT('QD01'!B51,"",'QD01'!C51)="","",_xlfn.CONCAT('QD01'!B51,"",'QD01'!C51)) ->  | E24: ='QD01'!D51 -> 0 | F24: ='QD01'!C22 -> 1250 | G24: ='QD01'!E22 -> 1.25 | H24: ='QD01'!E24 -> 0.625 | I24: ='QD01'!$E$25 -> NÃO | J24: ='QD01'!$E$26 -> M1 | K24: =VLOOKUP(J24,Tabelas!$A$2:$G$10,2,FALSE) -> MONOF | L24: 1 | M24: =_xlfn.CONCAT("DISJ ",K24," ",'QD01'!$E$28,"A") -> DISJ MONOF 32A | N24: 1#6(6)T#6
A25: =IF(D25=" "," ",COUNT($A$5:A24)+1) -> 20 | B25: QD01 | C25: 20 | D25: =IF(_xlfn.CONCAT('QD01'!B52,"",'QD01'!C52)="","",_xlfn.CONCAT('QD01'!B52,"",'QD01'!C52)) ->  | E25: ='QD01'!D52 -> 0 | F25: ='QD01'!C22 -> 1250 | G25: ='QD01'!E22 -> 1.25 | H25: ='QD01'!E24 -> 0.625 | I25: ='QD01'!$E$25 -> NÃO | J25: ='QD01'!$E$26 -> M1 | K25: =VLOOKUP(J25,Tabelas!$A$2:$G$10,2,FALSE) -> MONOF | L25: 1 | M25: =_xlfn.CONCAT("DISJ ",K25," ",'QD01'!$E$28,"A") -> DISJ MONOF 32A | N25: 1#6(6)T#6
A26: =IF(D26=" "," ",COUNT($A$26:A45)+1) ->  | B26: QD02 | C26: 1 | D26: =IF(_xlfn.CONCAT('QD02'!B33,"",'QD02'!C33)="","",_xlfn.CONCAT('QD02'!B33,"",'QD02'!C33)) -> Loja1 | E26: ='QD02'!D33 -> 1º Pavimento | F26: ='QD02'!C22 -> 5070 | G26: ='QD02'!E22 -> 5.07 | H26: ='QD02'!E24 -> 4.6137 | I26: ='QD02'!$E$25 -> SIM | J26: ='QD02'!$E$26 -> T1 | K26: =VLOOKUP(J26,Tabelas!$A$2:$G$10,2,FALSE) -> TRIF | L26: 3 | M26: =_xlfn.CONCAT("DISJ ",K26," ",'QD02'!$E$28,"A") -> DISJ TRIF 32A | N26: =VLOOKUP(J26,CABOS,4,FALSE) -> 3#6(6)T#6
A27: =IF(D27=" "," ",COUNT($A$26:A46)+1) ->  | B27: QD02 | C27: 2 | D27: =IF(_xlfn.CONCAT('QD02'!B34,"",'QD02'!C34)="","",_xlfn.CONCAT('QD02'!B34,"",'QD02'!C34)) -> Loja2 | E27: ='QD02'!D34 -> 2º Pavimento | F27: ='QD02'!C22 -> 5070 | G27: ='QD02'!E22 -> 5.07 | H27: ='QD02'!E24 -> 4.6137 | I27: ='QD02'!$E$25 -> SIM | J27: ='QD02'!$E$26 -> T1 | K27: =VLOOKUP(J27,Tabelas!$A$2:$G$10,2,FALSE) -> TRIF | L27: 3 | M27: =_xlfn.CONCAT("DISJ ",K27," ",'QD02'!$E$28,"A") -> DISJ TRIF 32A | N27: 3#6(6)T#6
A28: =IF(D28=" "," ",COUNT($A$26:A47)+1) ->  | B28: QD02 | C28: 3 | D28: =IF(_xlfn.CONCAT('QD02'!B35,"",'QD02'!C35)="","",_xlfn.CONCAT('QD02'!B35,"",'QD02'!C35)) ->  | E28: ='QD02'!D35 -> 0 | F28: ='QD02'!C22 -> 5070 | G28: ='QD01'!E22 -> 1.25 | H28: ='QD02'!E24 -> 4.6137 | I28: ='QD02'!$E$25 -> SIM | J28: ='QD02'!$E$26 -> T1 | K28: =VLOOKUP(J28,Tabelas!$A$2:$G$10,2,FALSE) -> TRIF | L28: 3 | M28: =_xlfn.CONCAT("DISJ ",K28," ",'QD02'!$E$28,"A") -> DISJ TRIF 32A | N28: 3#6(6)T#6
A29: =IF(D29=" "," ",COUNT($A$26:A48)+1) ->  | B29: QD02 | C29: 4 | D29: =IF(_xlfn.CONCAT('QD02'!B36,"",'QD02'!C36)="","",_xlfn.CONCAT('QD02'!B36,"",'QD02'!C36)) ->  | E29: ='QD02'!D36 -> 0 | F29: ='QD02'!C22 -> 5070 | G29: ='QD01'!E22 -> 1.25 | H29: ='QD02'!E24 -> 4.6137 | I29: ='QD02'!$E$25 -> SIM | J29: ='QD02'!$E$26 -> T1 | K29: =VLOOKUP(J29,Tabelas!$A$2:$G$10,2,FALSE) -> TRIF | L29: 3 | M29: =_xlfn.CONCAT("DISJ ",K29," ",'QD02'!$E$28,"A") -> DISJ TRIF 32A | N29: 3#6(6)T#6
A30: =IF(D30=" "," ",COUNT($A$26:A49)+1) ->  | B30: QD02 | C30: 5 | D30: =IF(_xlfn.CONCAT('QD02'!B37,"",'QD02'!C37)="","",_xlfn.CONCAT('QD02'!B37,"",'QD02'!C37)) ->  | E30: ='QD02'!D37 -> 0 | F30: ='QD02'!C22 -> 5070 | G30: ='QD01'!E22 -> 1.25 | H30: ='QD02'!E24 -> 4.6137 | I30: ='QD02'!$E$25 -> SIM | J30: ='QD02'!$E$26 -> T1 | K30: =VLOOKUP(J30,Tabelas!$A$2:$G$10,2,FALSE) -> TRIF | L30: 3 | M30: =_xlfn.CONCAT("DISJ ",K30," ",'QD02'!$E$28,"A") -> DISJ TRIF 32A | N30: 3#6(6)T#6
A31: =IF(D31=" "," ",COUNT($A$26:A50)+1) ->  | B31: QD02 | C31: 6 | D31: =IF(_xlfn.CONCAT('QD02'!B38,"",'QD02'!C38)="","",_xlfn.CONCAT('QD02'!B38,"",'QD02'!C38)) ->  | E31: ='QD02'!D38 -> 0 | F31: ='QD02'!C22 -> 5070 | G31: ='QD01'!E22 -> 1.25 | H31: ='QD02'!E24 -> 4.6137 | I31: ='QD02'!$E$25 -> SIM | J31: ='QD02'!$E$26 -> T1 | K31: =VLOOKUP(J31,Tabelas!$A$2:$G$10,2,FALSE) -> TRIF | L31: 3 | M31: =_xlfn.CONCAT("DISJ ",K31," ",'QD02'!$E$28,"A") -> DISJ TRIF 32A | N31: 3#6(6)T#6
A32: =IF(D32=" "," ",COUNT($A$26:A51)+1) ->  | B32: QD02 | C32: 7 | D32: =IF(_xlfn.CONCAT('QD02'!B39,"",'QD02'!C39)="","",_xlfn.CONCAT('QD02'!B39,"",'QD02'!C39)) ->  | E32: ='QD02'!D39 -> 0 | F32: ='QD02'!C22 -> 5070 | G32: ='QD01'!E22 -> 1.25 | H32: ='QD02'!E24 -> 4.6137 | I32: ='QD02'!$E$25 -> SIM | J32: ='QD02'!$E$26 -> T1 | K32: =VLOOKUP(J32,Tabelas!$A$2:$G$10,2,FALSE) -> TRIF | L32: 3 | M32: =_xlfn.CONCAT("DISJ ",K32," ",'QD02'!$E$28,"A") -> DISJ TRIF 32A | N32: 3#6(6)T#6
A33: =IF(D33=" "," ",COUNT($A$26:A52)+1) ->  | B33: QD02 | C33: 8 | D33: =IF(_xlfn.CONCAT('QD02'!B40,"",'QD02'!C40)="","",_xlfn.CONCAT('QD02'!B40,"",'QD02'!C40)) ->  | E33: ='QD02'!D40 -> 0 | F33: ='QD02'!C22 -> 5070 | G33: ='QD01'!E22 -> 1.25 | H33: ='QD02'!E24 -> 4.6137 | I33: ='QD02'!$E$25 -> SIM | J33: ='QD02'!$E$26 -> T1 | K33: =VLOOKUP(J33,Tabelas!$A$2:$G$10,2,FALSE) -> TRIF | L33: 3 | M33: =_xlfn.CONCAT("DISJ ",K33," ",'QD02'!$E$28,"A") -> DISJ TRIF 32A | N33: 3#6(6)T#6
A34: =IF(D34=" "," ",COUNT($A$26:A53)+1) ->  | B34: QD02 | C34: 9 | D34: =IF(_xlfn.CONCAT('QD02'!B41,"",'QD02'!C41)="","",_xlfn.CONCAT('QD02'!B41,"",'QD02'!C41)) ->  | E34: ='QD02'!D41 -> 0 | F34: ='QD02'!C22 -> 5070 | G34: ='QD01'!E22 -> 1.25 | H34: ='QD02'!E24 -> 4.6137 | I34: ='QD02'!$E$25 -> SIM | J34: ='QD02'!$E$26 -> T1 | K34: =VLOOKUP(J34,Tabelas!$A$2:$G$10,2,FALSE) -> TRIF | L34: 3 | M34: =_xlfn.CONCAT("DISJ ",K34," ",'QD02'!$E$28,"A") -> DISJ TRIF 32A | N34: 3#6(6)T#6
A35: =IF(D35=" "," ",COUNT($A$26:A54)+1) ->  | B35: QD02 | C35: 10 | D35: =IF(_xlfn.CONCAT('QD02'!B42,"",'QD02'!C42)="","",_xlfn.CONCAT('QD02'!B42,"",'QD02'!C42)) ->  | E35: ='QD02'!D42 -> 0 | F35: ='QD02'!C22 -> 5070 | G35: ='QD01'!E22 -> 1.25 | H35: ='QD02'!E24 -> 4.6137 | I35: ='QD02'!$E$25 -> SIM | J35: ='QD02'!$E$26 -> T1 | K35: =VLOOKUP(J35,Tabelas!$A$2:$G$10,2,FALSE) -> TRIF | L35: 3 | M35: =_xlfn.CONCAT("DISJ ",K35," ",'QD02'!$E$28,"A") -> DISJ TRIF 32A | N35: 3#6(6)T#6
A36: =IF(D36=" "," ",COUNT($A$26:A55)+1) ->  | B36: QD02 | C36: 11 | D36: =IF(_xlfn.CONCAT('QD02'!B43,"",'QD02'!C43)="","",_xlfn.CONCAT('QD02'!B43,"",'QD02'!C43)) ->  | E36: ='QD02'!D43 -> 0 | F36: ='QD02'!C22 -> 5070 | G36: ='QD01'!E22 -> 1.25 | H36: ='QD02'!E24 -> 4.6137 | I36: ='QD02'!$E$25 -> SIM | J36: ='QD02'!$E$26 -> T1 | K36: =VLOOKUP(J36,Tabelas!$A$2:$G$10,2,FALSE) -> TRIF | L36: 3 | M36: =_xlfn.CONCAT("DISJ ",K36," ",'QD02'!$E$28,"A") -> DISJ TRIF 32A | N36: 3#6(6)T#6
A37: =IF(D37=" "," ",COUNT($A$26:A56)+1) ->  | B37: QD02 | C37: 12 | D37: =IF(_xlfn.CONCAT('QD02'!B44,"",'QD02'!C44)="","",_xlfn.CONCAT('QD02'!B44,"",'QD02'!C44)) ->  | E37: ='QD02'!D44 -> 0 | F37: ='QD02'!C22 -> 5070 | G37: ='QD01'!E22 -> 1.25 | H37: ='QD02'!E24 -> 4.6137 | I37: ='QD02'!$E$25 -> SIM | J37: ='QD02'!$E$26 -> T1 | K37: =VLOOKUP(J37,Tabelas!$A$2:$G$10,2,FALSE) -> TRIF | L37: 3 | M37: =_xlfn.CONCAT("DISJ ",K37," ",'QD02'!$E$28,"A") -> DISJ TRIF 32A | N37: 3#6(6)T#6
A38: =IF(D38=" "," ",COUNT($A$26:A57)+1) ->  | B38: QD02 | C38: 13 | D38: =IF(_xlfn.CONCAT('QD02'!B45,"",'QD02'!C45)="","",_xlfn.CONCAT('QD02'!B45,"",'QD02'!C45)) ->  | E38: ='QD02'!D45 -> 0 | F38: ='QD02'!C22 -> 5070 | G38: ='QD01'!E22 -> 1.25 | H38: ='QD02'!E24 -> 4.6137 | I38: ='QD02'!$E$25 -> SIM | J38: ='QD02'!$E$26 -> T1 | K38: =VLOOKUP(J38,Tabelas!$A$2:$G$10,2,FALSE) -> TRIF | L38: 3 | M38: =_xlfn.CONCAT("DISJ ",K38," ",'QD02'!$E$28,"A") -> DISJ TRIF 32A | N38: 3#6(6)T#6
A39: =IF(D39=" "," ",COUNT($A$26:A58)+1) ->  | B39: QD02 | C39: 14 | D39: =IF(_xlfn.CONCAT('QD02'!B46,"",'QD02'!C46)="","",_xlfn.CONCAT('QD02'!B46,"",'QD02'!C46)) ->  | E39: ='QD02'!D46 -> 0 | F39: ='QD02'!C22 -> 5070 | G39: ='QD01'!E22 -> 1.25 | H39: ='QD02'!E24 -> 4.6137 | I39: ='QD02'!$E$25 -> SIM | J39: ='QD02'!$E$26 -> T1 | K39: =VLOOKUP(J39,Tabelas!$A$2:$G$10,2,FALSE) -> TRIF | L39: 3 | M39: =_xlfn.CONCAT("DISJ ",K39," ",'QD02'!$E$28,"A") -> DISJ TRIF 32A | N39: 3#6(6)T#6
A40: =IF(D40=" "," ",COUNT($A$26:A59)+1) ->  | B40: QD02 | C40: 15 | D40: =IF(_xlfn.CONCAT('QD02'!B47,"",'QD02'!C47)="","",_xlfn.CONCAT('QD02'!B47,"",'QD02'!C47)) ->  | E40: ='QD02'!D47 -> 0 | F40: ='QD02'!C22 -> 5070 | G40: ='QD01'!E22 -> 1.25 | H40: ='QD02'!E24 -> 4.6137 | I40: ='QD02'!$E$25 -> SIM | J40: ='QD02'!$E$26 -> T1 | K40: =VLOOKUP(J40,Tabelas!$A$2:$G$10,2,FALSE) -> TRIF | L40: 3 | M40: =_xlfn.CONCAT("DISJ ",K40," ",'QD02'!$E$28,"A") -> DISJ TRIF 32A | N40: 3#6(6)T#6
A41: =IF(D41=" "," ",COUNT($A$26:A60)+1) ->  | B41: QD02 | C41: 16 | D41: =IF(_xlfn.CONCAT('QD02'!B48,"",'QD02'!C48)="","",_xlfn.CONCAT('QD02'!B48,"",'QD02'!C48)) ->  | E41: ='QD02'!D48 -> 0 | F41: ='QD02'!C22 -> 5070 | G41: ='QD01'!E22 -> 1.25 | H41: ='QD02'!E24 -> 4.6137 | I41: ='QD02'!$E$25 -> SIM | J41: ='QD02'!$E$26 -> T1 | K41: =VLOOKUP(J41,Tabelas!$A$2:$G$10,2,FALSE) -> TRIF | L41: 3 | M41: =_xlfn.CONCAT("DISJ ",K41," ",'QD02'!$E$28,"A") -> DISJ TRIF 32A | N41: 3#6(6)T#6
A42: =IF(D42=" "," ",COUNT($A$26:A61)+1) ->  | B42: QD02 | C42: 17 | D42: =IF(_xlfn.CONCAT('QD02'!B49,"",'QD02'!C49)="","",_xlfn.CONCAT('QD02'!B49,"",'QD02'!C49)) ->  | E42: ='QD02'!D49 -> 0 | F42: ='QD02'!C22 -> 5070 | G42: ='QD01'!E22 -> 1.25 | H42: ='QD02'!E24 -> 4.6137 | I42: ='QD02'!$E$25 -> SIM | J42: ='QD02'!$E$26 -> T1 | K42: =VLOOKUP(J42,Tabelas!$A$2:$G$10,2,FALSE) -> TRIF | L42: 3 | M42: =_xlfn.CONCAT("DISJ ",K42," ",'QD02'!$E$28,"A") -> DISJ TRIF 32A | N42: =VLOOKUP(J42,CABOS,4,FALSE) -> 3#6(6)T#6
A43: =IF(D43=" "," ",COUNT($A$26:A62)+1) ->  | B43: QD02 | C43: 18 | D43: =IF(_xlfn.CONCAT('QD02'!B50,"",'QD02'!C50)="","",_xlfn.CONCAT('QD02'!B50,"",'QD02'!C50)) ->  | E43: ='QD02'!D50 -> 0 | F43: ='QD02'!C22 -> 5070 | G43: ='QD01'!E22 -> 1.25 | H43: ='QD02'!E24 -> 4.6137 | I43: ='QD02'!$E$25 -> SIM | J43: ='QD02'!$E$26 -> T1 | K43: =VLOOKUP(J43,Tabelas!$A$2:$G$10,2,FALSE) -> TRIF | L43: 3 | M43: =_xlfn.CONCAT("DISJ ",K43," ",'QD02'!$E$28,"A") -> DISJ TRIF 32A | N43: 3#6(6)T#6
A44: =IF(D44=" "," ",COUNT($A$26:A63)+1) ->  | B44: QD02 | C44: 19 | D44: =IF(_xlfn.CONCAT('QD02'!B51,"",'QD02'!C51)="","",_xlfn.CONCAT('QD02'!B51,"",'QD02'!C51)) ->  | E44: ='QD02'!D51 -> 0 | F44: ='QD02'!C22 -> 5070 | G44: ='QD01'!E22 -> 1.25 | H44: ='QD02'!E24 -> 4.6137 | I44: ='QD02'!$E$25 -> SIM | J44: ='QD02'!$E$26 -> T1 | K44: =VLOOKUP(J44,Tabelas!$A$2:$G$10,2,FALSE) -> TRIF | L44: 3 | M44: =_xlfn.CONCAT("DISJ ",K44," ",'QD02'!$E$28,"A") -> DISJ TRIF 32A | N44: 3#6(6)T#6
A45: =IF(D45=" "," ",COUNT($A$26:A64)+1) ->  | B45: QD02 | C45: 20 | D45: =IF(_xlfn.CONCAT('QD02'!B52,"",'QD02'!C52)="","",_xlfn.CONCAT('QD02'!B52,"",'QD02'!C52)) ->  | E45: ='QD02'!D52 -> 0 | F45: ='QD02'!C22 -> 5070 | G45: ='QD01'!E22 -> 1.25 | H45: ='QD02'!E24 -> 4.6137 | I45: ='QD02'!$E$25 -> SIM | J45: ='QD02'!$E$26 -> T1 | K45: =VLOOKUP(J45,Tabelas!$A$2:$G$10,2,FALSE) -> TRIF | L45: 3 | M45: =_xlfn.CONCAT("DISJ ",K45," ",'QD02'!$E$28,"A") -> DISJ TRIF 32A | N45: 3#6(6)T#6
A46: =IF(D46=" "," ",COUNT($A$46:A55)+1) ->  | B46: QD03 | C46: 1 | D46: =IF(_xlfn.CONCAT('QD03'!B33,"",'QD03'!C33)="","",_xlfn.CONCAT('QD03'!B33,"",'QD03'!C33)) -> Apartamento101 | E46: ='QD03'!D33 -> 1º Pavimento | F46: ='QD03'!C22 -> 8450 | G46: ='QD03'!E22 -> 8.45 | H46: ='QD03'!E24 -> 2.9575 | I46: ='QD03'!$E$25 -> NÃO | J46: ='QD03'!$E$26 -> M2 | K46: =VLOOKUP(J46,Tabelas!$A$2:$G$10,2,FALSE) -> MONOF | L46: 1 | M46: =_xlfn.CONCAT("DISJ ",K46," ",'QD03'!$E$28,"A") -> DISJ MONOF 50A | N46: 1#10(10)T#10
A47: =IF(D47=" "," ",COUNT($A$46:A56)+1) ->  | B47: QD03 | C47: 2 | D47: =IF(_xlfn.CONCAT('QD03'!B34,"",'QD03'!C34)="","",_xlfn.CONCAT('QD03'!B34,"",'QD03'!C34)) -> Apartamento102 | E47: ='QD03'!D34 -> 1º Pavimento | F47: ='QD03'!C22 -> 8450 | G47: ='QD03'!E22 -> 8.45 | H47: ='QD03'!E24 -> 2.9575 | I47: ='QD03'!$E$25 -> NÃO | J47: ='QD03'!$E$26 -> M2 | K47: =VLOOKUP(J47,Tabelas!$A$2:$G$10,2,FALSE) -> MONOF | L47: 1 | M47: =_xlfn.CONCAT("DISJ ",K47," ",'QD03'!$E$28,"A") -> DISJ MONOF 50A | N47: 1#10(10)T#10
A48: =IF(D48=" "," ",COUNT($A$46:A57)+1) ->  | B48: QD03 | C48: 3 | D48: =IF(_xlfn.CONCAT('QD03'!B35,"",'QD03'!C35)="","",_xlfn.CONCAT('QD03'!B35,"",'QD03'!C35)) -> Apartamento103 | E48: ='QD03'!D35 -> 1º Pavimento | F48: ='QD03'!C22 -> 8450 | G48: ='QD03'!E22 -> 8.45 | H48: ='QD03'!E24 -> 2.9575 | I48: ='QD03'!$E$25 -> NÃO | J48: ='QD03'!$E$26 -> M2 | K48: =VLOOKUP(J48,Tabelas!$A$2:$G$10,2,FALSE) -> MONOF | L48: 1 | M48: =_xlfn.CONCAT("DISJ ",K48," ",'QD03'!$E$28,"A") -> DISJ MONOF 50A | N48: 1#10(10)T#10
A49: =IF(D49=" "," ",COUNT($A$46:A58)+1) ->  | B49: QD03 | C49: 4 | D49: =IF(_xlfn.CONCAT('QD03'!B36,"",'QD03'!C36)="","",_xlfn.CONCAT('QD03'!B36,"",'QD03'!C36)) -> Apartamento104 | E49: ='QD03'!D36 -> 1º Pavimento | F49: ='QD03'!C22 -> 8450 | G49: ='QD03'!E22 -> 8.45 | H49: ='QD03'!E24 -> 2.9575 | I49: ='QD03'!$E$25 -> NÃO | J49: ='QD03'!$E$26 -> M2 | K49: =VLOOKUP(J49,Tabelas!$A$2:$G$10,2,FALSE) -> MONOF | L49: 1 | M49: =_xlfn.CONCAT("DISJ ",K49," ",'QD03'!$E$28,"A") -> DISJ MONOF 50A | N49: 1#10(10)T#10
A50: =IF(D50=" "," ",COUNT($A$46:A59)+1) ->  | B50: QD03 | C50: 5 | D50: =IF(_xlfn.CONCAT('QD03'!B37,"",'QD03'!C37)="","",_xlfn.CONCAT('QD03'!B37,"",'QD03'!C37)) -> Apartamento201 | E50: ='QD03'!D37 -> 2º Pavimento | F50: ='QD03'!C22 -> 8450 | G50: ='QD03'!E22 -> 8.45 | H50: ='QD03'!E24 -> 2.9575 | I50: ='QD03'!$E$25 -> NÃO | J50: ='QD03'!$E$26 -> M2 | K50: =VLOOKUP(J50,Tabelas!$A$2:$G$10,2,FALSE) -> MONOF | L50: 1 | M50: =_xlfn.CONCAT("DISJ ",K50," ",'QD03'!$E$28,"A") -> DISJ MONOF 50A | N50: 1#10(10)T#10
A51: =IF(D51=" "," ",COUNT($A$46:A60)+1) ->  | B51: QD03 | C51: 6 | D51: =IF(_xlfn.CONCAT('QD03'!B38,"",'QD03'!C38)="","",_xlfn.CONCAT('QD03'!B38,"",'QD03'!C38)) -> Apartamento202 | E51: ='QD03'!D38 -> 2º Pavimento | F51: ='QD03'!C22 -> 8450 | G51: ='QD03'!E22 -> 8.45 | H51: ='QD03'!E24 -> 2.9575 | I51: ='QD03'!$E$25 -> NÃO | J51: ='QD03'!$E$26 -> M2 | K51: =VLOOKUP(J51,Tabelas!$A$2:$G$10,2,FALSE) -> MONOF | L51: 1 | M51: =_xlfn.CONCAT("DISJ ",K51," ",'QD03'!$E$28,"A") -> DISJ MONOF 50A | N51: 1#10(10)T#10
A52: =IF(D52=" "," ",COUNT($A$46:A61)+1) ->  | B52: QD03 | C52: 7 | D52: =IF(_xlfn.CONCAT('QD03'!B39,"",'QD03'!C39)="","",_xlfn.CONCAT('QD03'!B39,"",'QD03'!C39)) -> Apartamento203 | E52: ='QD03'!D39 -> 2º Pavimento | F52: ='QD03'!C22 -> 8450 | G52: ='QD03'!E22 -> 8.45 | H52: ='QD03'!E24 -> 2.9575 | I52: ='QD03'!$E$25 -> NÃO | J52: ='QD03'!$E$26 -> M2 | K52: =VLOOKUP(J52,Tabelas!$A$2:$G$10,2,FALSE) -> MONOF | L52: 1 | M52: =_xlfn.CONCAT("DISJ ",K52," ",'QD03'!$E$28,"A") -> DISJ MONOF 50A | N52: 1#10(10)T#10
A53: =IF(D53=" "," ",COUNT($A$46:A62)+1) ->  | B53: QD03 | C53: 8 | D53: =IF(_xlfn.CONCAT('QD03'!B40,"",'QD03'!C40)="","",_xlfn.CONCAT('QD03'!B40,"",'QD03'!C40)) -> Apartamento204 | E53: ='QD03'!D40 -> 2º Pavimento | F53: ='QD03'!C22 -> 8450 | G53: ='QD03'!E22 -> 8.45 | H53: ='QD03'!E24 -> 2.9575 | I53: ='QD03'!$E$25 -> NÃO | J53: ='QD03'!$E$26 -> M2 | K53: =VLOOKUP(J53,Tabelas!$A$2:$G$10,2,FALSE) -> MONOF | L53: 1 | M53: =_xlfn.CONCAT("DISJ ",K53," ",'QD03'!$E$28,"A") -> DISJ MONOF 50A | N53: 1#10(10)T#10
A54: =IF(D54=" "," ",COUNT($A$46:A63)+1) ->  | B54: QD03 | C54: 9 | D54: =IF(_xlfn.CONCAT('QD03'!B41,"",'QD03'!C41)="","",_xlfn.CONCAT('QD03'!B41,"",'QD03'!C41)) -> Apartamento301 | E54: ='QD03'!D41 -> 3º Pavimento | F54: ='QD03'!C22 -> 8450 | G54: ='QD03'!E22 -> 8.45 | H54: ='QD03'!E24 -> 2.9575 | I54: ='QD03'!$E$25 -> NÃO | J54: ='QD03'!$E$26 -> M2 | K54: =VLOOKUP(J54,Tabelas!$A$2:$G$10,2,FALSE) -> MONOF | L54: 1 | M54: =_xlfn.CONCAT("DISJ ",K54," ",'QD03'!$E$28,"A") -> DISJ MONOF 50A | N54: 1#10(10)T#10
A55: =IF(D55=" "," ",COUNT($A$46:A64)+1) ->  | B55: QD03 | C55: 10 | D55: =IF(_xlfn.CONCAT('QD03'!B42,"",'QD03'!C42)="","",_xlfn.CONCAT('QD03'!B42,"",'QD03'!C42)) -> Apartamento302 | E55: ='QD03'!D42 -> 3º Pavimento | F55: ='QD03'!C22 -> 8450 | G55: ='QD03'!E22 -> 8.45 | H55: ='QD03'!E24 -> 2.9575 | I55: ='QD03'!$E$25 -> NÃO | J55: ='QD03'!$E$26 -> M2 | K55: =VLOOKUP(J55,Tabelas!$A$2:$G$10,2,FALSE) -> MONOF | L55: 1 | M55: =_xlfn.CONCAT("DISJ ",K55," ",'QD03'!$E$28,"A") -> DISJ MONOF 50A | N55: 1#10(10)T#10
A56: =IF(D56=" "," ",COUNT($A$56:A65)+1) ->  | B56: QD04 | C56: 1 | D56: =IF(_xlfn.CONCAT('QD04'!B33,"",'QD04'!C33)="","",_xlfn.CONCAT('QD04'!B33,"",'QD04'!C33)) ->  | E56: ='QD04'!D33 -> 0 | F56: ='QD04'!C22 -> 0 | G56: ='QD04'!E22 -> 0 | H56: ='QD04'!E24 -> 0 | I56: ='QD04'!$E$25 -> NÃO | J56: ='QD04'!$E$26 -> M1 | K56: =VLOOKUP(J56,Tabelas!$A$2:$G$10,2,FALSE) -> MONOF | L56: 1 | M56: =_xlfn.CONCAT("DISJ ",K56," ",'QD04'!$E$28,"A") -> DISJ MONOF A | N56: 1#6(6)T#6
A57: =IF(D57=" "," ",COUNT($A$56:A66)+1) ->  | B57: QD04 | C57: 2 | D57: =IF(_xlfn.CONCAT('QD04'!B34,"",'QD04'!C34)="","",_xlfn.CONCAT('QD04'!B34,"",'QD04'!C34)) ->  | E57: ='QD04'!D34 -> 0 | F57: ='QD04'!C22 -> 0 | G57: ='QD04'!E22 -> 0 | H57: ='QD04'!E24 -> 0 | I57: ='QD04'!$E$25 -> NÃO | J57: ='QD04'!$E$26 -> M1 | K57: =VLOOKUP(J57,Tabelas!$A$2:$G$10,2,FALSE) -> MONOF | L57: 1 | M57: =_xlfn.CONCAT("DISJ ",K57," ",'QD04'!$E$28,"A") -> DISJ MONOF A | N57: 1#6(6)T#6
A58: =IF(D58=" "," ",COUNT($A$56:A67)+1) ->  | B58: QD04 | C58: 3 | D58: =IF(_xlfn.CONCAT('QD04'!B35,"",'QD04'!C35)="","",_xlfn.CONCAT('QD04'!B35,"",'QD04'!C35)) ->  | E58: ='QD04'!D35 -> 0 | F58: ='QD04'!C22 -> 0 | G58: ='QD04'!E22 -> 0 | H58: ='QD04'!E24 -> 0 | I58: ='QD04'!$E$25 -> NÃO | J58: ='QD04'!$E$26 -> M1 | K58: =VLOOKUP(J58,Tabelas!$A$2:$G$10,2,FALSE) -> MONOF | L58: 1 | M58: =_xlfn.CONCAT("DISJ ",K58," ",'QD04'!$E$28,"A") -> DISJ MONOF A | N58: 1#6(6)T#6
A59: =IF(D59=" "," ",COUNT($A$56:A68)+1) ->  | B59: QD04 | C59: 4 | D59: =IF(_xlfn.CONCAT('QD04'!B36,"",'QD04'!C36)="","",_xlfn.CONCAT('QD04'!B36,"",'QD04'!C36)) ->  | E59: ='QD04'!D36 -> 0 | F59: ='QD04'!C22 -> 0 | G59: ='QD04'!E22 -> 0 | H59: ='QD04'!E24 -> 0 | I59: ='QD04'!$E$25 -> NÃO | J59: ='QD04'!$E$26 -> M1 | K59: =VLOOKUP(J59,Tabelas!$A$2:$G$10,2,FALSE) -> MONOF | L59: 1 | M59: =_xlfn.CONCAT("DISJ ",K59," ",'QD04'!$E$28,"A") -> DISJ MONOF A | N59: 1#6(6)T#6
A60: =IF(D60=" "," ",COUNT($A$56:A69)+1) ->  | B60: QD04 | C60: 5 | D60: =IF(_xlfn.CONCAT('QD04'!B37,"",'QD04'!C37)="","",_xlfn.CONCAT('QD04'!B37,"",'QD04'!C37)) ->  | E60: ='QD04'!D37 -> 0 | F60: ='QD04'!C22 -> 0 | G60: ='QD04'!E22 -> 0 | H60: ='QD04'!E24 -> 0 | I60: ='QD04'!$E$25 -> NÃO | J60: ='QD04'!$E$26 -> M1 | K60: =VLOOKUP(J60,Tabelas!$A$2:$G$10,2,FALSE) -> MONOF | L60: 1 | M60: =_xlfn.CONCAT("DISJ ",K60," ",'QD04'!$E$28,"A") -> DISJ MONOF A | N60: 1#6(6)T#6
A61: =IF(D61=" "," ",COUNT($A$56:A70)+1) ->  | B61: QD04 | C61: 6 | D61: =IF(_xlfn.CONCAT('QD04'!B38,"",'QD04'!C38)="","",_xlfn.CONCAT('QD04'!B38,"",'QD04'!C38)) ->  | E61: ='QD04'!D38 -> 0 | F61: ='QD04'!C22 -> 0 | G61: ='QD04'!E22 -> 0 | H61: ='QD04'!E24 -> 0 | I61: ='QD04'!$E$25 -> NÃO | J61: ='QD04'!$E$26 -> M1 | K61: =VLOOKUP(J61,Tabelas!$A$2:$G$10,2,FALSE) -> MONOF | L61: 1 | M61: =_xlfn.CONCAT("DISJ ",K61," ",'QD04'!$E$28,"A") -> DISJ MONOF A | N61: 1#6(6)T#6
A62: =IF(D62=" "," ",COUNT($A$56:A71)+1) ->  | B62: QD04 | C62: 7 | D62: =IF(_xlfn.CONCAT('QD04'!B39,"",'QD04'!C39)="","",_xlfn.CONCAT('QD04'!B39,"",'QD04'!C39)) ->  | E62: ='QD04'!D39 -> 0 | F62: ='QD04'!C22 -> 0 | G62: ='QD04'!E22 -> 0 | H62: ='QD04'!E24 -> 0 | I62: ='QD04'!$E$25 -> NÃO | J62: ='QD04'!$E$26 -> M1 | K62: =VLOOKUP(J62,Tabelas!$A$2:$G$10,2,FALSE) -> MONOF | L62: 1 | M62: =_xlfn.CONCAT("DISJ ",K62," ",'QD04'!$E$28,"A") -> DISJ MONOF A | N62: 1#6(6)T#6
A63: =IF(D63=" "," ",COUNT($A$56:A72)+1) ->  | B63: QD04 | C63: 8 | D63: =IF(_xlfn.CONCAT('QD04'!B40,"",'QD04'!C40)="","",_xlfn.CONCAT('QD04'!B40,"",'QD04'!C40)) ->  | E63: ='QD04'!D40 -> 0 | F63: ='QD04'!C22 -> 0 | G63: ='QD04'!E22 -> 0 | H63: ='QD04'!E24 -> 0 | I63: ='QD04'!$E$25 -> NÃO | J63: ='QD04'!$E$26 -> M1 | K63: =VLOOKUP(J63,Tabelas!$A$2:$G$10,2,FALSE) -> MONOF | L63: 1 | M63: =_xlfn.CONCAT("DISJ ",K63," ",'QD04'!$E$28,"A") -> DISJ MONOF A | N63: 1#6(6)T#6
A64: =IF(D64=" "," ",COUNT($A$56:A73)+1) ->  | B64: QD04 | C64: 9 | D64: =IF(_xlfn.CONCAT('QD04'!B41,"",'QD04'!C41)="","",_xlfn.CONCAT('QD04'!B41,"",'QD04'!C41)) ->  | E64: ='QD04'!D41 -> 0 | F64: ='QD04'!C22 -> 0 | G64: ='QD04'!E22 -> 0 | H64: ='QD04'!E24 -> 0 | I64: ='QD04'!$E$25 -> NÃO | J64: ='QD04'!$E$26 -> M1 | K64: =VLOOKUP(J64,Tabelas!$A$2:$G$10,2,FALSE) -> MONOF | L64: 1 | M64: =_xlfn.CONCAT("DISJ ",K64," ",'QD04'!$E$28,"A") -> DISJ MONOF A | N64: 1#6(6)T#6
A65: =IF(D65=" "," ",COUNT($A$56:A74)+1) ->  | B65: QD04 | C65: 10 | D65: =IF(_xlfn.CONCAT('QD04'!B42,"",'QD04'!C42)="","",_xlfn.CONCAT('QD04'!B42,"",'QD04'!C42)) ->  | E65: ='QD04'!D42 -> 0 | F65: ='QD04'!C22 -> 0 | G65: ='QD04'!E22 -> 0 | H65: ='QD04'!E24 -> 0 | I65: ='QD04'!$E$25 -> NÃO | J65: ='QD04'!$E$26 -> M1 | K65: =VLOOKUP(J65,Tabelas!$A$2:$G$10,2,FALSE) -> MONOF | L65: 1 | M65: =_xlfn.CONCAT("DISJ ",K65," ",'QD04'!$E$28,"A") -> DISJ MONOF A | N65: 1#6(6)T#6
A66: =IF(D66=0,"",COUNT($A$6:A65)+1) ->  | B66: QD05 | C66: 1 | D66: =IF(_xlfn.CONCAT('QD05'!B33,"",'QD05'!C33)="","",_xlfn.CONCAT('QD05'!B33,"",'QD05'!C33)) ->  | E66: ='QD05'!D33 -> 0 | F66: ='QD05'!C22 -> 0 | G66: ='QD05'!E22 -> 0 | H66: ='QD05'!E24 -> 0 | I66: ='QD05'!$E$25 -> NÃO | J66: ='QD05'!$E$26 -> M1 | K66: =VLOOKUP(J66,Tabelas!$A$2:$G$10,2,FALSE) -> MONOF | L66: 1 | M66: =_xlfn.CONCAT("DISJ ",K66," ",'QD05'!$E$28,"A") -> DISJ MONOF A | N66: 1#6(6)T#6
A67: =IF(D67=0,"",COUNT($A$6:A66)+1) ->  | B67: QD05 | C67: 2 | D67: =IF(_xlfn.CONCAT('QD05'!B34,"",'QD05'!C34)="","",_xlfn.CONCAT('QD05'!B34,"",'QD05'!C34)) ->  | E67: ='QD05'!D34 -> 0 | F67: ='QD05'!C22 -> 0 | G67: ='QD05'!E22 -> 0 | H67: ='QD05'!E24 -> 0 | I67: ='QD05'!$E$25 -> NÃO | J67: ='QD05'!$E$26 -> M1 | K67: =VLOOKUP(J67,Tabelas!$A$2:$G$10,2,FALSE) -> MONOF | L67: 1 | M67: =_xlfn.CONCAT("DISJ ",K67," ",'QD05'!$E$28,"A") -> DISJ MONOF A | N67: 1#6(6)T#6
A68: =IF(D68=0,"",COUNT($A$6:A67)+1) ->  | B68: QD05 | C68: 3 | D68: =IF(_xlfn.CONCAT('QD05'!B35,"",'QD05'!C35)="","",_xlfn.CONCAT('QD05'!B35,"",'QD05'!C35)) ->  | E68: ='QD05'!D35 -> 0 | F68: ='QD05'!C22 -> 0 | G68: ='QD05'!E22 -> 0 | H68: ='QD05'!E24 -> 0 | I68: ='QD05'!$E$25 -> NÃO | J68: ='QD05'!$E$26 -> M1 | K68: =VLOOKUP(J68,Tabelas!$A$2:$G$10,2,FALSE) -> MONOF | L68: 1 | M68: =_xlfn.CONCAT("DISJ ",K68," ",'QD05'!$E$28,"A") -> DISJ MONOF A | N68: 1#6(6)T#6
A69: =IF(D69=0,"",COUNT($A$6:A68)+1) ->  | B69: QD05 | C69: 4 | D69: =IF(_xlfn.CONCAT('QD05'!B36,"",'QD05'!C36)="","",_xlfn.CONCAT('QD05'!B36,"",'QD05'!C36)) ->  | E69: ='QD05'!D36 -> 0 | F69: ='QD05'!C22 -> 0 | G69: ='QD05'!E22 -> 0 | H69: ='QD05'!E24 -> 0 | I69: ='QD05'!$E$25 -> NÃO | J69: ='QD05'!$E$26 -> M1 | K69: =VLOOKUP(J69,Tabelas!$A$2:$G$10,2,FALSE) -> MONOF | L69: 1 | M69: =_xlfn.CONCAT("DISJ ",K69," ",'QD05'!$E$28,"A") -> DISJ MONOF A | N69: 1#6(6)T#6
A70: =IF(D70=0,"",COUNT($A$6:A69)+1) ->  | B70: QD05 | C70: 5 | D70: =IF(_xlfn.CONCAT('QD05'!B37,"",'QD05'!C37)="","",_xlfn.CONCAT('QD05'!B37,"",'QD05'!C37)) ->  | E70: ='QD05'!D37 -> 0 | F70: ='QD05'!C22 -> 0 | G70: ='QD05'!E22 -> 0 | H70: ='QD05'!E24 -> 0 | I70: ='QD05'!$E$25 -> NÃO | J70: ='QD05'!$E$26 -> M1 | K70: =VLOOKUP(J70,Tabelas!$A$2:$G$10,2,FALSE) -> MONOF | L70: 1 | M70: =_xlfn.CONCAT("DISJ ",K70," ",'QD05'!$E$28,"A") -> DISJ MONOF A | N70: 1#6(6)T#6
A71: =IF(D71=0,"",COUNT($A$6:A70)+1) ->  | B71: QD05 | C71: 6 | D71: =IF(_xlfn.CONCAT('QD05'!B38,"",'QD05'!C38)="","",_xlfn.CONCAT('QD05'!B38,"",'QD05'!C38)) ->  | E71: ='QD05'!D38 -> 0 | F71: ='QD05'!C22 -> 0 | G71: ='QD05'!E22 -> 0 | H71: ='QD05'!E24 -> 0 | I71: ='QD05'!$E$25 -> NÃO | J71: ='QD05'!$E$26 -> M1 | K71: =VLOOKUP(J71,Tabelas!$A$2:$G$10,2,FALSE) -> MONOF | L71: =IF(K71="MONOF ",1,IF(K71="BIF ",2,IF(K71="TRIF ",3,""))) -> 1 | M71: =_xlfn.CONCAT("DISJ ",K71," ",'QD05'!$E$28,"A") -> DISJ MONOF A | N71: 1#6(6)T#6
A72: =IF(D72=0,"",COUNT($A$6:A71)+1) ->  | B72: QD05 | C72: 7 | D72: =IF(_xlfn.CONCAT('QD05'!B39,"",'QD05'!C39)="","",_xlfn.CONCAT('QD05'!B39,"",'QD05'!C39)) ->  | E72: ='QD05'!D39 -> 0 | F72: ='QD05'!C22 -> 0 | G72: ='QD05'!E22 -> 0 | H72: ='QD05'!E24 -> 0 | I72: ='QD05'!$E$25 -> NÃO | J72: ='QD05'!$E$26 -> M1 | K72: =VLOOKUP(J72,Tabelas!$A$2:$G$10,2,FALSE) -> MONOF | L72: 1 | M72: =_xlfn.CONCAT("DISJ ",K72," ",'QD05'!$E$28,"A") -> DISJ MONOF A | N72: 1#6(6)T#6
A73: =IF(D73=0,"",COUNT($A$6:A72)+1) ->  | B73: QD05 | C73: 8 | D73: =IF(_xlfn.CONCAT('QD05'!B40,"",'QD05'!C40)="","",_xlfn.CONCAT('QD05'!B40,"",'QD05'!C40)) ->  | E73: ='QD05'!D40 -> 0 | F73: ='QD05'!C22 -> 0 | G73: ='QD05'!E22 -> 0 | H73: ='QD05'!E24 -> 0 | I73: ='QD05'!$E$25 -> NÃO | J73: ='QD05'!$E$26 -> M1 | K73: =VLOOKUP(J73,Tabelas!$A$2:$G$10,2,FALSE) -> MONOF | L73: 1 | M73: =_xlfn.CONCAT("DISJ ",K73," ",'QD05'!$E$28,"A") -> DISJ MONOF A | N73: 1#6(6)T#6
B74: QD05 | C74: 9 | D74: =IF(_xlfn.CONCAT('QD05'!B41,"",'QD05'!C41)="","",_xlfn.CONCAT('QD05'!B41,"",'QD05'!C41)) ->  | E74: ='QD05'!D41 -> 0 | F74: ='QD05'!C22 -> 0 | G74: ='QD05'!E22 -> 0 | H74: ='QD05'!E24 -> 0 | I74: ='QD05'!$E$25 -> NÃO | J74: ='QD05'!$E$26 -> M1 | K74: =VLOOKUP(J74,Tabelas!$A$2:$G$10,2,FALSE) -> MONOF | L74: 1 | M74: =_xlfn.CONCAT("DISJ ",K74," ",'QD05'!$E$28,"A") -> DISJ MONOF A | N74: 1#6(6)T#6
B75: QD05 | C75: 10 | D75: =IF(_xlfn.CONCAT('QD05'!B42,"",'QD05'!C42)="","",_xlfn.CONCAT('QD05'!B42,"",'QD05'!C42)) ->  | E75: ='QD05'!D42 -> 0 | F75: ='QD05'!C22 -> 0 | G75: ='QD05'!E22 -> 0 | H75: ='QD05'!E24 -> 0 | I75: ='QD05'!$E$25 -> NÃO | J75: ='QD05'!$E$26 -> M1 | K75: =VLOOKUP(J75,Tabelas!$A$2:$G$10,2,FALSE) -> MONOF | L75: 1 | M75: =_xlfn.CONCAT("DISJ ",K75," ",'QD05'!$E$28,"A") -> DISJ MONOF A | N75: 1#6(6)T#6

Sheet Medições
K2: Painel Coletivo - Interligação Neoenergia Brasília
D3: Dados Básicos do Painel de Medição
D6: Tipo de painel: | J6: Madeira | L6: Localização do PM | N6: TERREO
L7: Medição de Incêndio | N7: Sim
D8: Ligações na caixa DF: | J8: 19
D9: Tipo de caixa DF: | J9: DF-24
D11: Dados da medição de Incêndio
D13: Identificação | J13: Carga instalada | K13: Demanda | L13: Disjuntor | M13: Cabos | N13: Caixa de medição
D14: =DadosMedições!B4 -> QDINC | J14: =DadosMedições!F4 -> 20000 | K14: =DadosMedições!H4 -> 10 | L14: =DadosMedições!M4 -> DISJ TRIF 32A | M14: =DadosMedições!N4 -> 3#6(6)T#6 | N14: =DadosMedições!O4 -> P1
D16: Dados das medições das unidades consumidoras
D18: Identificação | J18: Carga instalada | K18: Demanda | L18: Disjuntor | M18: Cabos | N18: Tipo de painel
D19: =_xlfn._xlws.FILTER(DadosMedições!$D$6:$D$75, DadosMedições!$D$6:$D$75<>"" ) -> Serviço1 | J19: =IFERROR(VLOOKUP(D19,DadosMedições!$D$6:$O$75,3,FALSE),"") -> 1250 | K19: =IFERROR(VLOOKUP(D19,DadosMedições!$D$6:$O$75,5,FALSE),"") -> 0.625 | L19: =IFERROR(VLOOKUP(D19,DadosMedições!$D$6:$O$75,10,FALSE),"") -> DISJ MONOF 32A | M19: =IFERROR(VLOOKUP(D19,DadosMedições!$D$6:$O$75,11,FALSE),"") -> 1#6(6)T#6 | N19: A
D20: Loja1 | J20: =IFERROR(VLOOKUP(D20,DadosMedições!$D$6:$O$75,3,FALSE),"") -> 5070 | K20: =IFERROR(VLOOKUP(D20,DadosMedições!$D$6:$O$75,5,FALSE),"") -> 4.6137 | L20: =IFERROR(VLOOKUP(D20,DadosMedições!$D$6:$O$75,10,FALSE),"") -> DISJ TRIF 32A | M20: =IFERROR(VLOOKUP(D20,DadosMedições!$D$6:$O$75,11,FALSE),"") -> 3#6(6)T#6 | N20: B
D21: Loja2 | J21: =IFERROR(VLOOKUP(D21,DadosMedições!$D$6:$O$75,3,FALSE),"") -> 5070 | K21: =IFERROR(VLOOKUP(D21,DadosMedições!$D$6:$O$75,5,FALSE),"") -> 4.6137 | L21: =IFERROR(VLOOKUP(D21,DadosMedições!$D$6:$O$75,10,FALSE),"") -> DISJ TRIF 32A | M21: =IFERROR(VLOOKUP(D21,DadosMedições!$D$6:$O$75,11,FALSE),"") -> 3#6(6)T#6 | N21: B
D22: Apartamento101 | J22: =IFERROR(VLOOKUP(D22,DadosMedições!$D$6:$O$75,3,FALSE),"") -> 8450 | K22: =IFERROR(VLOOKUP(D22,DadosMedições!$D$6:$O$75,5,FALSE),"") -> 2.9575 | L22: =IFERROR(VLOOKUP(D22,DadosMedições!$D$6:$O$75,10,FALSE),"") -> DISJ MONOF 50A | M22: =IFERROR(VLOOKUP(D22,DadosMedições!$D$6:$O$75,11,FALSE),"") -> 1#10(10)T#10 | N22: A
D23: Apartamento102 | J23: =IFERROR(VLOOKUP(D23,DadosMedições!$D$6:$O$75,3,FALSE),"") -> 8450 | K23: =IFERROR(VLOOKUP(D23,DadosMedições!$D$6:$O$75,5,FALSE),"") -> 2.9575 | L23: =IFERROR(VLOOKUP(D23,DadosMedições!$D$6:$O$75,10,FALSE),"") -> DISJ MONOF 50A | M23: =IFERROR(VLOOKUP(D23,DadosMedições!$D$6:$O$75,11,FALSE),"") -> 1#10(10)T#10 | N23: A
D24: Apartamento103 | J24: =IFERROR(VLOOKUP(D24,DadosMedições!$D$6:$O$75,3,FALSE),"") -> 8450 | K24: =IFERROR(VLOOKUP(D24,DadosMedições!$D$6:$O$75,5,FALSE),"") -> 2.9575 | L24: =IFERROR(VLOOKUP(D24,DadosMedições!$D$6:$O$75,10,FALSE),"") -> DISJ MONOF 50A | M24: =IFERROR(VLOOKUP(D24,DadosMedições!$D$6:$O$75,11,FALSE),"") -> 1#10(10)T#10 | N24: A
D25: Apartamento104 | J25: =IFERROR(VLOOKUP(D25,DadosMedições!$D$6:$O$75,3,FALSE),"") -> 8450 | K25: =IFERROR(VLOOKUP(D25,DadosMedições!$D$6:$O$75,5,FALSE),"") -> 2.9575 | L25: =IFERROR(VLOOKUP(D25,DadosMedições!$D$6:$O$75,10,FALSE),"") -> DISJ MONOF 50A | M25: =IFERROR(VLOOKUP(D25,DadosMedições!$D$6:$O$75,11,FALSE),"") -> 1#10(10)T#10 | N25: A
D26: Apartamento201 | J26: =IFERROR(VLOOKUP(D26,DadosMedições!$D$6:$O$75,3,FALSE),"") -> 8450 | K26: =IFERROR(VLOOKUP(D26,DadosMedições!$D$6:$O$75,5,FALSE),"") -> 2.9575 | L26: =IFERROR(VLOOKUP(D26,DadosMedições!$D$6:$O$75,10,FALSE),"") -> DISJ MONOF 50A | M26: =IFERROR(VLOOKUP(D26,DadosMedições!$D$6:$O$75,11,FALSE),"") -> 1#10(10)T#10 | N26: A
D27: Apartamento202 | J27: =IFERROR(VLOOKUP(D27,DadosMedições!$D$6:$O$75,3,FALSE),"") -> 8450 | K27: =IFERROR(VLOOKUP(D27,DadosMedições!$D$6:$O$75,5,FALSE),"") -> 2.9575 | L27: =IFERROR(VLOOKUP(D27,DadosMedições!$D$6:$O$75,10,FALSE),"") -> DISJ MONOF 50A | M27: =IFERROR(VLOOKUP(D27,DadosMedições!$D$6:$O$75,11,FALSE),"") -> 1#10(10)T#10 | N27: A
D28: Apartamento203 | J28: =IFERROR(VLOOKUP(D28,DadosMedições!$D$6:$O$75,3,FALSE),"") -> 8450 | K28: =IFERROR(VLOOKUP(D28,DadosMedições!$D$6:$O$75,5,FALSE),"") -> 2.9575 | L28: =IFERROR(VLOOKUP(D28,DadosMedições!$D$6:$O$75,10,FALSE),"") -> DISJ MONOF 50A | M28: =IFERROR(VLOOKUP(D28,DadosMedições!$D$6:$O$75,11,FALSE),"") -> 1#10(10)T#10 | N28: A
D29: Apartamento204 | J29: =IFERROR(VLOOKUP(D29,DadosMedições!$D$6:$O$75,3,FALSE),"") -> 8450 | K29: =IFERROR(VLOOKUP(D29,DadosMedições!$D$6:$O$75,5,FALSE),"") -> 2.9575 | L29: =IFERROR(VLOOKUP(D29,DadosMedições!$D$6:$O$75,10,FALSE),"") -> DISJ MONOF 50A | M29: =IFERROR(VLOOKUP(D29,DadosMedições!$D$6:$O$75,11,FALSE),"") -> 1#10(10)T#10 | N29: A
D30: Apartamento301 | J30: =IFERROR(VLOOKUP(D30,DadosMedições!$D$6:$O$75,3,FALSE),"") -> 8450 | K30: =IFERROR(VLOOKUP(D30,DadosMedições!$D$6:$O$75,5,FALSE),"") -> 2.9575 | L30: =IFERROR(VLOOKUP(D30,DadosMedições!$D$6:$O$75,10,FALSE),"") -> DISJ MONOF 50A | M30: =IFERROR(VLOOKUP(D30,DadosMedições!$D$6:$O$75,11,FALSE),"") -> 1#10(10)T#10 | N30: A
D31: Apartamento302 | J31: =IFERROR(VLOOKUP(D31,DadosMedições!$D$6:$O$75,3,FALSE),"") -> 8450 | K31: =IFERROR(VLOOKUP(D31,DadosMedições!$D$6:$O$75,5,FALSE),"") -> 2.9575 | L31: =IFERROR(VLOOKUP(D31,DadosMedições!$D$6:$O$75,10,FALSE),"") -> DISJ MONOF 50A | M31: =IFERROR(VLOOKUP(D31,DadosMedições!$D$6:$O$75,11,FALSE),"") -> 1#10(10)T#10 | N31: A
J32: =IFERROR(VLOOKUP(D32,DadosMedições!$D$6:$O$75,3,FALSE),"") ->  | K32: =IFERROR(VLOOKUP(D32,DadosMedições!$D$6:$O$75,5,FALSE),"") ->  | L32: =IFERROR(VLOOKUP(D32,DadosMedições!$D$6:$O$75,10,FALSE),"") ->  | M32: =IFERROR(VLOOKUP(D32,DadosMedições!$D$6:$O$75,11,FALSE),"") -> 
J33: =IFERROR(VLOOKUP(D33,DadosMedições!$D$6:$O$75,3,FALSE),"") ->  | K33: =IFERROR(VLOOKUP(D33,DadosMedições!$D$6:$O$75,5,FALSE),"") ->  | L33: =IFERROR(VLOOKUP(D33,DadosMedições!$D$6:$O$75,10,FALSE),"") ->  | M33: =IFERROR(VLOOKUP(D33,DadosMedições!$D$6:$O$75,11,FALSE),"") -> 
J34: =IFERROR(VLOOKUP(D34,DadosMedições!$D$6:$O$75,3,FALSE),"") ->  | K34: =IFERROR(VLOOKUP(D34,DadosMedições!$D$6:$O$75,5,FALSE),"") ->  | L34: =IFERROR(VLOOKUP(D34,DadosMedições!$D$6:$O$75,10,FALSE),"") ->  | M34: =IFERROR(VLOOKUP(D34,DadosMedições!$D$6:$O$75,11,FALSE),"") -> 
J35: =IFERROR(VLOOKUP(D35,DadosMedições!$D$6:$O$75,3,FALSE),"") ->  | K35: =IFERROR(VLOOKUP(D35,DadosMedições!$D$6:$O$75,5,FALSE),"") ->  | L35: =IFERROR(VLOOKUP(D35,DadosMedições!$D$6:$O$75,10,FALSE),"") ->  | M35: =IFERROR(VLOOKUP(D35,DadosMedições!$D$6:$O$75,11,FALSE),"") -> 
J36: =IFERROR(VLOOKUP(D36,DadosMedições!$D$6:$O$75,3,FALSE),"") ->  | K36: =IFERROR(VLOOKUP(D36,DadosMedições!$D$6:$O$75,5,FALSE),"") ->  | L36: =IFERROR(VLOOKUP(D36,DadosMedições!$D$6:$O$75,10,FALSE),"") ->  | M36: =IFERROR(VLOOKUP(D36,DadosMedições!$D$6:$O$75,11,FALSE),"") -> 
J37: =IFERROR(VLOOKUP(D37,DadosMedições!$D$6:$O$75,3,FALSE),"") ->  | K37: =IFERROR(VLOOKUP(D37,DadosMedições!$D$6:$O$75,5,FALSE),"") ->  | L37: =IFERROR(VLOOKUP(D37,DadosMedições!$D$6:$O$75,10,FALSE),"") ->  | M37: =IFERROR(VLOOKUP(D37,DadosMedições!$D$6:$O$75,11,FALSE),"") -> 
J38: =IFERROR(VLOOKUP(D38,DadosMedições!$D$6:$O$75,3,FALSE),"") ->  | K38: =IFERROR(VLOOKUP(D38,DadosMedições!$D$6:$O$75,5,FALSE),"") ->  | L38: =IFERROR(VLOOKUP(D38,DadosMedições!$D$6:$O$75,10,FALSE),"") ->  | M38: =IFERROR(VLOOKUP(D38,DadosMedições!$D$6:$O$75,11,FALSE),"") -> 
J39: =IFERROR(VLOOKUP(D39,DadosMedições!$D$6:$O$75,3,FALSE),"") ->  | K39: =IFERROR(VLOOKUP(D39,DadosMedições!$D$6:$O$75,5,FALSE),"") ->  | L39: =IFERROR(VLOOKUP(D39,DadosMedições!$D$6:$O$75,10,FALSE),"") ->  | M39: =IFERROR(VLOOKUP(D39,DadosMedições!$D$6:$O$75,11,FALSE),"") -> 
J40: =IFERROR(VLOOKUP(D40,DadosMedições!$D$6:$O$75,3,FALSE),"") ->  | K40: =IFERROR(VLOOKUP(D40,DadosMedições!$D$6:$O$75,5,FALSE),"") ->  | L40: =IFERROR(VLOOKUP(D40,DadosMedições!$D$6:$O$75,10,FALSE),"") ->  | M40: =IFERROR(VLOOKUP(D40,DadosMedições!$D$6:$O$75,11,FALSE),"") -> 
J41: =IFERROR(VLOOKUP(D41,DadosMedições!$D$6:$O$75,3,FALSE),"") ->  | K41: =IFERROR(VLOOKUP(D41,DadosMedições!$D$6:$O$75,5,FALSE),"") ->  | L41: =IFERROR(VLOOKUP(D41,DadosMedições!$D$6:$O$75,10,FALSE),"") ->  | M41: =IFERROR(VLOOKUP(D41,DadosMedições!$D$6:$O$75,11,FALSE),"") -> 
J42: =IFERROR(VLOOKUP(D42,DadosMedições!$D$6:$O$75,3,FALSE),"") ->  | K42: =IFERROR(VLOOKUP(D42,DadosMedições!$D$6:$O$75,5,FALSE),"") ->  | L42: =IFERROR(VLOOKUP(D42,DadosMedições!$D$6:$O$75,10,FALSE),"") ->  | M42: =IFERROR(VLOOKUP(D42,DadosMedições!$D$6:$O$75,11,FALSE),"") -> 
J43: =IFERROR(VLOOKUP(D43,DadosMedições!$D$6:$O$75,3,FALSE),"") ->  | K43: =IFERROR(VLOOKUP(D43,DadosMedições!$D$6:$O$75,5,FALSE),"") ->  | L43: =IFERROR(VLOOKUP(D43,DadosMedições!$D$6:$O$75,10,FALSE),"") ->  | M43: =IFERROR(VLOOKUP(D43,DadosMedições!$D$6:$O$75,11,FALSE),"") -> 
J44: =IFERROR(VLOOKUP(D44,DadosMedições!$D$6:$O$75,3,FALSE),"") ->  | K44: =IFERROR(VLOOKUP(D44,DadosMedições!$D$6:$O$75,5,FALSE),"") ->  | L44: =IFERROR(VLOOKUP(D44,DadosMedições!$D$6:$O$75,10,FALSE),"") ->  | M44: =IFERROR(VLOOKUP(D44,DadosMedições!$D$6:$O$75,11,FALSE),"") -> 
J45: =IFERROR(VLOOKUP(D45,DadosMedições!$D$6:$O$75,3,FALSE),"") ->  | K45: =IFERROR(VLOOKUP(D45,DadosMedições!$D$6:$O$75,5,FALSE),"") ->  | L45: =IFERROR(VLOOKUP(D45,DadosMedições!$D$6:$O$75,10,FALSE),"") ->  | M45: =IFERROR(VLOOKUP(D45,DadosMedições!$D$6:$O$75,11,FALSE),"") -> 
J46: =IFERROR(VLOOKUP(D46,DadosMedições!$D$6:$O$75,3,FALSE),"") ->  | K46: =IFERROR(VLOOKUP(D46,DadosMedições!$D$6:$O$75,5,FALSE),"") ->  | L46: =IFERROR(VLOOKUP(D46,DadosMedições!$D$6:$O$75,10,FALSE),"") ->  | M46: =IFERROR(VLOOKUP(D46,DadosMedições!$D$6:$O$75,11,FALSE),"") -> 
J47: =IFERROR(VLOOKUP(D47,DadosMedições!$D$6:$O$75,3,FALSE),"") ->  | K47: =IFERROR(VLOOKUP(D47,DadosMedições!$D$6:$O$75,5,FALSE),"") ->  | L47: =IFERROR(VLOOKUP(D47,DadosMedições!$D$6:$O$75,10,FALSE),"") ->  | M47: =IFERROR(VLOOKUP(D47,DadosMedições!$D$6:$O$75,11,FALSE),"") -> 
J48: =IFERROR(VLOOKUP(D48,DadosMedições!$D$6:$O$75,3,FALSE),"") ->  | K48: =IFERROR(VLOOKUP(D48,DadosMedições!$D$6:$O$75,5,FALSE),"") ->  | L48: =IFERROR(VLOOKUP(D48,DadosMedições!$D$6:$O$75,10,FALSE),"") ->  | M48: =IFERROR(VLOOKUP(D48,DadosMedições!$D$6:$O$75,11,FALSE),"") -> 
J49: =IFERROR(VLOOKUP(D49,DadosMedições!$D$6:$O$75,3,FALSE),"") ->  | K49: =IFERROR(VLOOKUP(D49,DadosMedições!$D$6:$O$75,5,FALSE),"") ->  | L49: =IFERROR(VLOOKUP(D49,DadosMedições!$D$6:$O$75,10,FALSE),"") ->  | M49: =IFERROR(VLOOKUP(D49,DadosMedições!$D$6:$O$75,11,FALSE),"") -> 
J50: =IFERROR(VLOOKUP(D50,DadosMedições!$D$6:$O$75,3,FALSE),"") ->  | K50: =IFERROR(VLOOKUP(D50,DadosMedições!$D$6:$O$75,5,FALSE),"") ->  | L50: =IFERROR(VLOOKUP(D50,DadosMedições!$D$6:$O$75,10,FALSE),"") ->  | M50: =IFERROR(VLOOKUP(D50,DadosMedições!$D$6:$O$75,11,FALSE),"") -> 
J51: =IFERROR(VLOOKUP(D51,DadosMedições!$D$6:$O$75,3,FALSE),"") ->  | K51: =IFERROR(VLOOKUP(D51,DadosMedições!$D$6:$O$75,5,FALSE),"") ->  | L51: =IFERROR(VLOOKUP(D51,DadosMedições!$D$6:$O$75,10,FALSE),"") ->  | M51: =IFERROR(VLOOKUP(D51,DadosMedições!$D$6:$O$75,11,FALSE),"") -> 
J52: =IFERROR(VLOOKUP(D52,DadosMedições!$D$6:$O$75,3,FALSE),"") ->  | K52: =IFERROR(VLOOKUP(D52,DadosMedições!$D$6:$O$75,5,FALSE),"") ->  | L52: =IFERROR(VLOOKUP(D52,DadosMedições!$D$6:$O$75,10,FALSE),"") ->  | M52: =IFERROR(VLOOKUP(D52,DadosMedições!$D$6:$O$75,11,FALSE),"") -> 
J53: =IFERROR(VLOOKUP(D53,DadosMedições!$D$6:$O$75,3,FALSE),"") ->  | K53: =IFERROR(VLOOKUP(D53,DadosMedições!$D$6:$O$75,5,FALSE),"") ->  | L53: =IFERROR(VLOOKUP(D53,DadosMedições!$D$6:$O$75,10,FALSE),"") ->  | M53: =IFERROR(VLOOKUP(D53,DadosMedições!$D$6:$O$75,11,FALSE),"") -> 
J54: =IFERROR(VLOOKUP(D54,DadosMedições!$D$6:$O$75,3,FALSE),"") ->  | K54: =IFERROR(VLOOKUP(D54,DadosMedições!$D$6:$O$75,5,FALSE),"") ->  | L54: =IFERROR(VLOOKUP(D54,DadosMedições!$D$6:$O$75,10,FALSE),"") ->  | M54: =IFERROR(VLOOKUP(D54,DadosMedições!$D$6:$O$75,11,FALSE),"") -> 
J55: =IFERROR(VLOOKUP(D55,DadosMedições!$D$6:$O$75,3,FALSE),"") ->  | K55: =IFERROR(VLOOKUP(D55,DadosMedições!$D$6:$O$75,5,FALSE),"") ->  | L55: =IFERROR(VLOOKUP(D55,DadosMedições!$D$6:$O$75,10,FALSE),"") ->  | M55: =IFERROR(VLOOKUP(D55,DadosMedições!$D$6:$O$75,11,FALSE),"") -> 
J56: =IFERROR(VLOOKUP(D56,DadosMedições!$D$6:$O$75,3,FALSE),"") ->  | K56: =IFERROR(VLOOKUP(D56,DadosMedições!$D$6:$O$75,5,FALSE),"") ->  | L56: =IFERROR(VLOOKUP(D56,DadosMedições!$D$6:$O$75,10,FALSE),"") ->  | M56: =IFERROR(VLOOKUP(D56,DadosMedições!$D$6:$O$75,11,FALSE),"") -> 
J57: =IFERROR(VLOOKUP(D57,DadosMedições!$D$6:$O$75,3,FALSE),"") ->  | K57: =IFERROR(VLOOKUP(D57,DadosMedições!$D$6:$O$75,5,FALSE),"") ->  | L57: =IFERROR(VLOOKUP(D57,DadosMedições!$D$6:$O$75,10,FALSE),"") ->  | M57: =IFERROR(VLOOKUP(D57,DadosMedições!$D$6:$O$75,11,FALSE),"") -> 
J58: =IFERROR(VLOOKUP(D58,DadosMedições!$D$6:$O$75,3,FALSE),"") ->  | K58: =IFERROR(VLOOKUP(D58,DadosMedições!$D$6:$O$75,5,FALSE),"") ->  | L58: =IFERROR(VLOOKUP(D58,DadosMedições!$D$6:$O$75,10,FALSE),"") ->  | M58: =IFERROR(VLOOKUP(D58,DadosMedições!$D$6:$O$75,11,FALSE),"") -> 
I60: Contagem | J60: Num | L60: DISJ BIF 50A
I61: =L19&"-"&COUNTIF($L$19:L19,L19) -> DISJ MONOF 32A-1 | J61: 1 | L61: =INDEX($D$19:$D$58,MATCH("DISJ BIF 50A-"&J61,$I$61:$I$100,0)) -> 
I62: =L20&"-"&COUNTIF($L$19:L20,L20) -> DISJ TRIF 32A-1 | J62: 2 | L62: =INDEX($D$19:$D$58,MATCH("DISJ BIF 50A-"&J62,$I$61:$I$100,0)) -> 
I63: =L21&"-"&COUNTIF($L$19:L21,L21) -> DISJ TRIF 32A-2 | J63: 3
I64: =L22&"-"&COUNTIF($L$19:L22,L22) -> DISJ MONOF 50A-1 | J64: 4
I65: =L23&"-"&COUNTIF($L$19:L23,L23) -> DISJ MONOF 50A-2 | J65: 5
I66: =L24&"-"&COUNTIF($L$19:L24,L24) -> DISJ MONOF 50A-3 | J66: 6
I67: =L25&"-"&COUNTIF($L$19:L25,L25) -> DISJ MONOF 50A-4 | J67: 7
I68: =L26&"-"&COUNTIF($L$19:L26,L26) -> DISJ MONOF 50A-5 | J68: 8
I69: =L27&"-"&COUNTIF($L$19:L27,L27) -> DISJ MONOF 50A-6 | J69: 9
I70: =L28&"-"&COUNTIF($L$19:L28,L28) -> DISJ MONOF 50A-7 | J70: 10
I71: =L29&"-"&COUNTIF($L$19:L29,L29) -> DISJ MONOF 50A-8 | J71: 11
I72: =L30&"-"&COUNTIF($L$19:L30,L30) -> DISJ MONOF 50A-9 | J72: 12
I73: =L31&"-"&COUNTIF($L$19:L31,L31) -> DISJ MONOF 50A-10 | J73: 13
I74: =L32&"-"&COUNTIF($L$19:L32,L32) -> -1 | J74: 14
I75: =L33&"-"&COUNTIF($L$19:L33,L33) -> -2 | J75: 15
I76: =L34&"-"&COUNTIF($L$19:L34,L34) -> -3 | J76: 16
I77: =L35&"-"&COUNTIF($L$19:L35,L35) -> -4 | J77: 17
I78: =L36&"-"&COUNTIF($L$19:L36,L36) -> -5 | J78: 18
I79: =L37&"-"&COUNTIF($L$19:L37,L37) -> -6 | J79: 19
I80: =L38&"-"&COUNTIF($L$19:L38,L38) -> -7 | J80: 20
I81: =L39&"-"&COUNTIF($L$19:L39,L39) -> -8 | J81: 21
I82: =L40&"-"&COUNTIF($L$19:L40,L40) -> -9 | J82: 22
I83: =L41&"-"&COUNTIF($L$19:L41,L41) -> -10 | J83: 23
I84: =L42&"-"&COUNTIF($L$19:L42,L42) -> -11 | J84: 24
I85: =L43&"-"&COUNTIF($L$19:L43,L43) -> -12 | J85: 25
I86: =L44&"-"&COUNTIF($L$19:L44,L44) -> -13 | J86: 26
I87: =L45&"-"&COUNTIF($L$19:L45,L45) -> -14 | J87: 27
I88: =L46&"-"&COUNTIF($L$19:L46,L46) -> -15 | J88: 28
I89: =L47&"-"&COUNTIF($L$19:L47,L47) -> -16 | J89: 29
I90: =L48&"-"&COUNTIF($L$19:L48,L48) -> -17 | J90: 30
I91: =L49&"-"&COUNTIF($L$19:L49,L49) -> -18 | J91: 31
I92: =L50&"-"&COUNTIF($L$19:L50,L50) -> -19 | J92: 32
I93: =L51&"-"&COUNTIF($L$19:L51,L51) -> -20 | J93: 33
I94: =L52&"-"&COUNTIF($L$19:L52,L52) -> -21 | J94: 34
I95: =L53&"-"&COUNTIF($L$19:L53,L53) -> -22 | J95: 35
I96: =L54&"-"&COUNTIF($L$19:L54,L54) -> -23 | J96: 36
I97: =L55&"-"&COUNTIF($L$19:L55,L55) -> -24 | J97: 37
I98: =L56&"-"&COUNTIF($L$19:L56,L56) -> -25 | J98: 38
I99: =L57&"-"&COUNTIF($L$19:L57,L57) -> -26 | J99: 39
I100: =L58&"-"&COUNTIF($L$19:L58,L58) -> -27 | J100: 40
D104: =SUM(J19:J58)/1000 -> 95.89

Sheet Ramal_Aerero_Poste de transição
B2: Painel Coletivo - Interligação Neoenergia Brasília | CG2: LEGENDA
B3: PLANTA SITUAÇÃO/LOCALIZAÇÃO | CG3: Posicione os itens na planta de situação
Y6: TIPO DE TERRENO: | AK6: Meio | CH6: CAIXA CB1
CH8: CAIXA CB2
CH15: POSTE PARTICULAR
CH22: POSTE DE REDE
CP26: Di
CH31: PAINEL DE MEDIÇÃO
CH39: REDE ELÉTRICA
B89: TIPO DE DERIVAÇÃO DA REDE
B124: OBSERVAÇÕES DO PROJETISTA:

Sheet Ramal
E2: Painel Coletivo - Interligação Neoenergia Brasília
B4: Parâmetros para dimensionamento do Ramal de Entrada
B7: Tensão Primário/Secundário (kV): | F7: 0,38kV
B9: Carga instalada | F9: =Medições!D104 -> 95.89 | G9: kW
B11: Fator de demanda | F11: 0.38
B13: Disjuntor | F13: 63
B15: Tipo de Isolação do condutor dor ramal de entrada (BT) | F15: EPR/XLPE 90ºC (mm²)
B18: Condutores: | F18: 3#16(16)T#16
B20: Rede de Fornecimento | F20: Aérea
B22: Tipo Ramal | F22: Subterrâneo
B24: Ramal de ligação cruzará a rua ou sómente a calçada? | F24: Cruzará somente a calçada
B27: Tipo de transição | F27: Poste da rede

Sheet Ramal_subterraneo_redesub
B2: Painel Coletivo - Interligação Neoenergia Brasília | CG2: LEGENDA
B3: PLANTA SITUAÇÃO/LOCALIZAÇÃO | CG3: Posicione os itens na planta de situação
Y6: TIPO DE TERRENO: | AK6: Quarteirão | CH6: CAIXA CB1
CH8: CAIXA CB2
CH15: POSTE PARTICULAR
CH22: POSTE DE REDE
CP26: Di
CH31: PAINEL DE MEDIÇÃO
CH39: REDE ELÉTRICA
B89: TIPO DE DERIVAÇÃO DA REDE
B124: OBSERVAÇÕES DO PROJETISTA:

Sheet Ramal_subterraneo_posterede
B2: Painel Coletivo - Interligação Neoenergia Brasília | CG2: LEGENDA
B3: PLANTA SITUAÇÃO/LOCALIZAÇÃO | CG3: Posicione os itens na planta de situação
Y6: TIPO DE TERRENO: | AK6: Quarteirão | CH6: CAIXA CB1
CH8: CAIXA CB2
CH15: POSTE PARTICULAR
CH22: POSTE DE REDE
CH31: PAINEL DE MEDIÇÃO
CH39: REDE ELÉTRICA
B89: TIPO DE DERIVAÇÃO DA REDE
B124: OBSERVAÇÕES DO PROJETISTA:

Sheet Rede_aerea_pontalete
B2: Painel Coletivo - Interligação Neoenergia Brasília | CG2: LEGENDA
B3: PLANTA SITUAÇÃO/LOCALIZAÇÃO | CG3: Posicione os itens na planta de situação
Y6: TIPO DE TERRENO: | AK6: Quarteirão | CH6: CAIXA CB1
CH8: CAIXA CB2
CH15: POSTE PARTICULAR
CH22: POSTE DE REDE
CP26: Di
CH31: PAINEL DE MEDIÇÃO
CH39: REDE ELÉTRICA
B89: TIPO DE DERIVAÇÃO DA REDE
B124: OBSERVAÇÕES DO PROJETISTA:

Sheet Diagrama
Q2: Painel Coletivo - Interligação Neoenergia Brasília
B3: DIAGRAMA UNIFILAR
X6: =CONCATENATE(QDINC!E29,"A") -> 32A
AD7: =IF(Formulário!H16="Sim","POSSUI MEDIÇÃO DE INCÊNDIO","SEM MEDIÇÃO DE INCÊNDIO") -> POSSUI MEDIÇÃO DE INCÊNDIO
AB9: =QDINC!E30 -> 3#6(6)T#6
E13: =Ramal!F18 -> 3#16(16)T#16
E14: =Ramal!F15 -> EPR/XLPE 90ºC (mm²) | M14: =_xlfn.CONCAT("DISJ TRIF ",Ramal!F13,"A") -> DISJ TRIF 63A
W16: 32A/35A | AB16: 1#6(6)T#6
AF18: =CONCATENATE((Tabelas!U10)," MEDIÇÕES MONOFÁSICAS DE 32A/35A") -> 1 MEDIÇÕES MONOFÁSICAS DE 32A/35A
M20: 3 DISJ MON 20A | W20: 50A | AB20: 1#10(10)T#10
AF22: =CONCATENATE(COUNTIF(Medições!L19:L58, "DISJ MONOF 50A")," MEDIÇÕES MONOFÁSICAS DE 50A") -> 10 MEDIÇÕES MONOFÁSICAS DE 50A
W24: 32A/35A | AB24: 2#6(6)T#6
M26: DPS MIN 242V 5KA | AF26: =CONCATENATE(Tabelas!U13," MEDIÇÕES BIF DE 32A/35A") -> 0 MEDIÇÕES BIF DE 32A/35A
W28: 50A | AB28: 2#10(10)T#10
AF30: =CONCATENATE(COUNTIF(Medições!L19:L58, "DISJ BIF 50A")," MEDIÇÕES BIFÁSICAS DE 50A") -> 0 MEDIÇÕES BIFÁSICAS DE 50A
W32: 32A/35A | AB32: 3#6(6)T#6
AF33: =CONCATENATE(Tabelas!U11," MEDIÇÕES TRIFÁSICAS DE 32A/35A") -> 2 MEDIÇÕES TRIFÁSICAS DE 32A/35A
W35: 50A | AB35: 3#10(10)T#10
AF36: =CONCATENATE(COUNTIF(Medições!L19:L58, "DISJ TRIF 50A")," MEDIÇÕES TRIFÁSICAS DE 50A") -> 0 MEDIÇÕES TRIFÁSICAS DE 50A
W38: 63A/70A/80A | AB38: 3#25(25)T#16
AF39: =CONCATENATE(Tabelas!U12," MEDIÇÕES TRIFÁSICAS DE 63A/70A/80A") -> 0 MEDIÇÕES TRIFÁSICAS DE 63A/70A/80A
E41: VAI À MALHA DE ATERRAMENTO
C60: =CONCATENATE(QDINC!E29,"A") -> 32A

Sheet Tabelas (hidden)
C1: Tabelas de medições mono e bifáfico
A2: TIPO | B2: FASE | C2: Carga instalada | D2: cabo | E2: disjuntor 1 | F2: disjuntor 2
A3: M1 | B3: MONOF | C3: 8 | D3: 1#6(6)T#6 | E3: 32 | F3: 35
A4: M2 | B4: MONOF | C4: 11 | D4: 1#10(10)T#10 | E4: 40 | F4: 50
A5: B1 | B5: BIF | C5: 15 | D5: 2#6(6)T#6 | E5: 32 | F5: 35
A6: B2 | B6: BIF | C6: 22 | D6: 2#10(10)T#10 | E6: 40 | F6: 50
A7: T1 | B7: TRIF | C7: 23 | D7: 3#6(6)T#6 | E7: 32 | F7: 35
A8: T2 | B8: TRIF | C8: 33 | D8: 3#10(10)T#10 | E8: 40 | F8: 50
A9: T3 | B9: TRIF | C9: 45 | D9: 3#25(25)T#16 | E9: 63 | F9: 70 | G9: 80 | T9: CONTAGEM MEDIÇÃO COM MAIS DE UMA OPÇÃO DE DISJUNTOR
A10: T4 | B10: TRIF | C10: 65 | D10: 3#35(35)T#16 | E10: 100 | T10: MONO | U10: =SUM(COUNTIFS(Medições!L19:L58,{"DISJ MONOF 35A";"DISJ MONOF 32A"})) -> 1
T11: TRIF | U11: =SUM(COUNTIFS(Medições!L19:L58,{"DISJ TRIF 35A";"DISJ TRIF 32A"})) -> 2
A12: Tipos de painel de madeira | T12: TRIF2 | U12: =SUM(COUNTIFS(Medições!L19:L58,{"DISJ TRIF 63A";"DISJ TRIF 70A";"DISJ TRIF 80A"})) -> 0
A13: M1 | B13: M2 | C13: B1 | D13: B2 | E13: T1 | F13: T2 | G13: T3 | H13: T4 | I13: Policarbonato | T13: BIF | U13: =SUM(COUNTIFS(Medições!L19:L58,{"DISJ BIF 32A";"DISJ BIF 35A"})) -> 0
A14: A | B14: A | C14: B | D14: B | E14: B | F14: B | G14: C | H14: C | I14: Policarbonato | T14: SE´s Disjuntores
A15: B | B15: B | C15: C | D15: C | E15: C | F15: C | T15: =IF(Tabelas!$A$26<=33, S33,IF(Tabelas!$A$26<=45, S34,IF(Tabelas!$A$26<=65, S35,IF(Tabelas!$A$26<=82, S36,IF(Tabelas!$A$26<=98,S37,IF(Tabelas!$A$26<=115,S38,IF(Tabelas!$A$26<=130,S39,IF(Tabelas!$A$26<=160,S40,IF(Tabelas!$A$26<=190,S41,""))))))))) -> T3
A16: C | B16: C
A17: 32 | B17: 40 | C17: 32 | D17: 40 | E17: 32 | F17: 40 | G17: 63 | H17: 100
A18: 35 | B18: 50 | C18: 35 | D18: 50 | E18: 35 | F18: 50 | G18: 70
G19: 80
A21: REGRA CAIXA DF
A22: =IF(Medições!J8 = 12,13,"") ->  | C22: =IF(Medições!J8 = 36,37,"") ->  | D22: =IF(Medições!J8 = 48,49,"") -> 
A23: =IF(Medições!J9= "DF-12",12,"") ->  | C23: =IF(Medições!J9= "DF-36",36,"") ->  | D23: =IF(Medições!J9= "DF-48",48,"") -> 
A24: REGRA DISJUNTOR
A25: DEMANDA
A26: =Ramal!F9*Ramal!F11 -> 36.4382
A28: TE1
A29: TE2 | S29: TIPO | T29: DISJUNTOR | W29: CONDUTOR UNIPOLAR | X29: CONDUTOR UNIPOLAR | Y29: Disjuntores possíveis | Z29: Cabos possíveis
A30: TE3 | W30: Isolação XLPE/EPR 90 °C | X30: Isolação PVC 70 °C
A31: TE4 | W31: FASE/Neutro/Terra | X31: FASE/Neutro/Terra | Y31: =VLOOKUP(T15,S29:X41,2,FALSE) -> 63 | Z31: =IF(Ramal!F15="PVC 70º.C (mm²)",VLOOKUP(Tabelas!T15,Tabelas!S29:X41,6,FALSE),IF(Ramal!F15="EPR/XLPE 90ºC (mm²)",VLOOKUP(Tabelas!T15,Tabelas!S29:X41,5,FALSE),"")) -> 3#16(16)T#16
W32: 3#6(6)T#6 | X32: 3#6(6)T#6 | Y32: =VLOOKUP(T15,S29:X41,3,FALSE) -> 70
R33: 33 | S33: T2 | T33: 50 | W33: 3#10(10)T#10 | X33: 3#10(10)T#10 | Y33: =VLOOKUP(T15,S29:X41,4,FALSE) -> 80
R34: 45 | S34: T3 | T34: 63 | U34: 70 | V34: 80 | W34: 3#16(16)T#16 | X34: 3#25(25)T#16
R35: 65 | S35: T4 | T35: 100 | W35: 3#25(25)T#16 | X35: 3#35(35)T#16
R36: 82 | S36: TE1 | T36: 125 | W36: 3#35(35)T#16 | X36: 3#50(50)T#25
R37: 98 | S37: TE2 | T37: 150 | W37: 3#50(50)T#25 | X37: 3#70(70)T#35
R38: 115 | S38: TE3 | T38: 175 | W38: 3#70(70)T#35 | X38: 3#95(95)T#50
R39: 130 | S39: TE4 | T39: 200 | W39: 3#95(95)T#50 | X39: 3#120(120)T#70
R40: 160 | S40: TE5 | T40: 250 | W40: 3#150(150)T#70 | X40: 3#185(185)T#95
R41: 190 | S41: TE6 | T41: 300 | W41: 3x2x#50(50)T#50 | X41: 3x2x#70(70)T#70

Sheet ORIENTAÇÕES
G2: Orientações Esquema Vertical e Layout do PM
B3: Orientações painel de medição
B5: Encaminhar o layout do PM em anexo aos arquivos, seguindo as orientações abaixo; 1- A caixa ou painel de medidor mais alta do centro de medição deve ser instalada com sua face superior a uma altura máxima de 2 m em relação ao piso acabado. 2- A caixa ou painel de medidor mais baixa do centro de medição deve ser instalada com sua face inferior a uma altura mínima de 0,20 m em relação ao piso acabado. 3- Cada uma das U.C. constituintes do(s) centro(s) de medição deve ser identificada, sequencialmente, da esquerda para a direita, obedecendo sempre a ordem de cima para baixo. Obs.Para centro de medição em policarbonato, os condutores, tanto de fase quanto de neutro, dos ramais de medidores que saem da caixa de distribuição devem identificar a unidade consumidora por intermédio de anilhas plásticas fixadas nos próprios condutores. 4- Dimensões das caixas de distribuição para painel em madeira repeitando a tabela 20 da NTD 6.07. 5- Dimensões dos painéis de madeira respeitando a tabela 21 da NTD 6.07. 6- Acrescentar as vistas: Frontal interna, Corte lateral e Frontal externa. 7- Acrescentando as legendas referentes ao tipo de caixa, ao copex metálico(entrando pelo furo da esquerda), disjuntor utilizado e numeração dos apt´s. 8- Representar junto ao painel o eletorduto que se segue para o aterramento, e o eletroduto de entrada.
B21: Orientações esquema vertical
B25: Encaminhar os esquema vertical em anexo aos arquivos, seguindo as orientações abaixo; 1- Apresentar Esquema vertical, no caso de edificação com mais de um piso. OBS. Para empreendimentos com apenas um piso, indicar o esquema do terreo. 2- A vista em questão deve conter a posição dos apt´s, os eletordutos e cabos que seguem para as unidades, além do posicionameto do PM e da caixa de medição de incêndio(caso tenha).

Sheet Painel madeiras (hidden)
D46: Observações: A caixa de medição
